{"text_format":"1","workbook":"xlsx","n_sheets":13,"sheets":["Invulinstructie","Inleesinstructie","Inleesblad","Totaalblad","Overzicht gemeenten","Versiebeheer","begin","Gemeente x","einde","Categorie","Productcodes","Versie","Tussenblad"],"not_rendered":{"charts":0,"images":3,"macros":1,"external_links":2,"defined_names":17,"comments":0,"pivot_tables":0},"unopened":[],"bounds":{"document_bytes":16777216,"sheet_cells":100000,"rows_first":2000,"rows_last":500,"rows_between":2000,"halvings":0,"cell_chars":16384,"cell_head_chars":4096},"cells_cut":0,"cells_raw":0,"read":"whole","date_system":"1900"}

{"sheet":"Invulinstructie","index":0,"n_rows":28,"n_cols":2,"rows_kept":28,"cut":false,"hidden":false,"merged":[]}
[null,"Invulinstructie Financiële productieverantwoording Jeugdwet"]
[]
[null,"JEUGDWET INVULINSTRUCTIE "]
[]
[null,"Algemeen"]
[null,"Dit formulier is bedoeld voor de financiële verantwoording van zorgaanbieders uit hoofde van de Jeugdwet. De financiële productieverantwoording bevat de definitieve opgave van de gerealiseerde productie 2022 en is onlosmakelijk verbonden aan het “Algemeen accountantsprotocol financiële productieverantwoording WMO en Jeugdwet 2022”. \n\nVoor zover in dit formulier wordt gesproken over ‘zorgaanbieder’ wordt hiermee bedoeld: alle onderdelen van een beherend rechtspersoon die samen opgenomen zijn in het gesloten contract met betreffende gemeente(n). Voor de definitie van 'gemeente' zie de definitielijst van het “Algemeen accountantsprotocol financiële productieverantwoording WMO en Jeugdwet 2022”. \n\nEen boekjaar wordt gelijk gesteld aan het kalenderjaar. Wanneer sprake is van zorgtrajecten die niet per einde van het boekjaar kunnen worden afgesloten, geldt dat de financiële productieverantwoording tevens de financiële waarde van fictief afgesloten zorgtrajecten omvat die per 31 december 2022 onderhanden zijn. In de verantwoording van deze zorgtrajecten neemt u als productie mee de reeds in 2022 geleverde, maar nog niet afgesloten ondersteuning en/of zorg. Dit doet u door bij ‘aantal’ het aantal gerealiseerde zorgtrajecten in te vullen, inclusief de som van de naar rato verleende zorg in nog niet afgesloten zorgtrajecten. Heeft u bijvoorbeeld 10 zorgtrajecten in het boekjaar gestart en volledig afgerond en 9 half, dan verantwoordt u 14,5 trajecten. \n\nHet formulier moet van voor naar achteren en van boven naar beneden worden ingevuld. Alle door u in te vullen velden zijn ‘blauw gearceerd’. Witte cellen geven uitkomsten van berekeningen weer. \n\nU dient de tabbladen “Totaalblad”, “Overzicht Gemeenten” en de Gemeente-tabbladen op te slaan als PDF om ze te kunnen tekenen en/of te waarmerken. Het is afhankelijk per gemeente of het document moet worden aangeleverd. Hieronder wordt, indien van toepassing, per tabblad een toelichting gegeven. \n"]
[]
[null,"Tabblad ‘Totaalblad’"]
[null,"Het tabblad ‘Totaalblad’ geeft de totaal gerealiseerde productie uit hoofde van de Jeugdwet weer, waarvan gemeenten een accountantscontrole voorschrijven. Als de coulance regeling van toepassing is verklaard voor een zorgaanbieder, hoeft de accountant de verantwoording niet te ondertekenen. De naam en datum die ingevuld worden op het tabblad “Totaal Overzicht” worden overgenomen op de tabbladen “Overzicht Gemeenten” en de tabbladen van de aangemaakte gemeentes. "]
[]
[null,"Tabblad ‘Overzicht gemeenten’"]
[null,"In dit tabblad geeft u aan voor welke gemeente(n) u uw geleverde productie uit hoofde van de Jeugdwet wilt verantwoorden. Heeft u met een gemeente ook afspraken binnen het domein Wmo, dan gebruikt u daarvoor het verantwoordingsformat Wmo. In de financiële productieverantwoording op totaalniveau per domein wordt alleen de productie Jeugdwet verwerkt die betrekking heeft op de gemeenten die een accountantscontrole voorschrijven. De accountant waarmerkt dit overzicht en verwijst er naar in zijn controleverklaring (onderdeel “Overige aspecten – beperking in gebruik en verspreidingskring”). \n"]
[null,"Voor het aanmaken van de verantwoordingen per gemeente vult u in het bovenste blok op regelniveau de gemeente(n) in waar u verantwoording over af wenst te leggen. Vervolgens klikt u op de button ‘Aanmaken verantwoordingen gemeenten’. Het systeem maakt dan automatisch de tabbladen (voorzien van de naam van de gemeente) aan. Indien u meer regels nodig heeft, klikt u op ‘toevoegen’. Het systeem voegt een nieuwe regel toe onder de regel waar u staat met uw cursor. Dit maakt het mogelijk om ook tussen de reeds ingevoerde regels nieuwe regels te plaatsen. Nadat u vervolgens de namen van de gemeente(n) heeft ingevuld, klikt u opnieuw op de button ‘Aanmaken verantwoordingen’. Het systeem voegt de nieuwe tabbladen, voorzien van de naam van de gemeente, toe. Heeft u per ongeluk een verkeerde gemeente opgenomen, dan kunt u deze verwijderen. Ga hiervoor op de betreffende regel staan en klik op de button ‘verwijderen’. Klik vervolgens opnieuw op de button ‘Aanmaken verantwoordingen gemeenten’ om ook het bijbehorende tabblad te verwijderen.   "]
[null," \nNa het aanmaken van de tabbladen is het niet gewenst om de volgorde van de tabbladen te wijzigen. Indien u toch wijzigingen aanbrengt, kunnen er fouten optreden in de automatische tellingen.\n\nOp basis van de ingevulde financiële productieverantwoordingen per gemeente berekent het model in het tabblad ‘Totaalblad’ de totale gerealiseerde productie binnen het domein Jeugdwet. \n\nDoor ondertekening van het formulier ‘Financiële productieverantwoording 2022’ verklaart de bestuurder van de zorgaanbieder dat de financiële productieverantwoording 2022 naar waarheid en in overeenstemming met de vigerende wet- en regelgeving is verantwoord. Zie hiervoor paragraaf 3.5 Normen- en toetsingskader, “Algemeen accountantsprotocol financiële productieverantwoording WMO en Jeugdwet 2022”."]
[null,"Tabblad ‘Versiebeheer’"]
[null,"Als het formulier na publicatie nog is aangepast en er dus een nieuwe versie beschikbaar is, dan kunt u in het tabblad Versiebeheer zien welke mutaties er zijn doorgevoerd ten opzichte van het eerder gepubliceerde formulier. "]
[null,"Tabblad ‘Gemeente’ "]
[null,"Overeenkomstig het aantal ingevulde ‘gemeenten’ worden standaard tabbladen aangemaakt. Per gemeente legt u achtereenvolgens verantwoording af over de gerealiseerde productie 2022 binnen het domein Jeugdwet. \n\nBinnen het formulier is zoveel mogelijk rekening gehouden met de variëteit in de wijze van het maken van inkoopafspraken, gehanteerde productcategoriën (iJW 3.1) en bekostigingsvormen door de gemeenten voor 2022. De productcategorieën zijn standaard verborgen. U dient zelf de voor u van toepassing zijnde productcategorieën zichtbaar te maken. Maak hiervoor gebruik van de button ‘Productcategorieën zichtbaar maken of verbergen’. U kunt ingeven welke productcategorieën u zichtbaar wenst te maken. Heeft u een categorie zichtbaar gemaakt en wenst u de categorie alsnog te verbergen, dan kunt u dit doen via dezelfde button ‘Productcategorieën zichtbaar maken of verbergen’. Het is niet mogelijk om een productiecategorie te verbergen waarin u reeds productie heeft verantwoord. U krijgt dan een melding. \nOok kan het voorkomen dat een deel van de velden binnen een productcategorie voor u niet relevant is of dat u juist extra velden nodig heeft. Extra velden kunnen worden toegevoegd via de button 'toevoegen'.  Een teveel aan rijen kan worden verminderd via een klik op de button 'verwijderen'. Voor de consistentie van het formulier, verzoeken wij u, met uitzondering van de daarvoor bestemde buttons, geen cellen/ rijen/ kolommen te verwijderen. "]
[null,"Diverse gemeenten hebben in 2015 contracten voor langere tijd (>1 jaar) afgesloten of gebruikten producten van 2015 ook nog in daaropvolgende jaren. Om deze reden zijn in dit verantwoordingsformat de categorieën 31 t/m 38 uit 2015 toegevoegd. De verantwoording die u invult, betreft vanzelfsprekend de productie over 2022.\n\nIndien het overeengekomen contract voorzien is van een inkoopordernummer, kunt u dit nummer per bekostigingsstroom invullen.\n\n- In de eerste kolom worden de automatisch aangemaakte regelnummers weergegeven;\n- In de tweede kolom, onder de naam van de Productcategorie (bijvoorbeeld Persoonlijke verzorging) vult u de omschrijving van het product in;\n- In de kolom 'Code' vult u, indien aanwezig, de bijbehorende productcode in;\n- In de kolom Eenheid geeft u aan op basis van welke grootheid de gerealiseerde productieaantallen verantwoord worden. Dit kan zijn minuut, uur, etmaal (24 uur), dagdeel (4 uur), week, euro of stuks, etc. ;\n- In de kolom 'Aantal' vult u het gerealiseerde aantal in, de Q; \n- In de kolom 'Prijs' vult u het overeengekomen tarief in, de P; \n- In de kolom 'Realisatie' berekent het formulier de gerealiseerde productie middels P*Q; \n- De laatste regel van een blok geeft de totaal gerealiseerde productie per Productcategorie weer; "]
[null,"Voor meer informatie over de waardering van het onderhanden werk wordt verwezen naar \"Bijlage IV Definities en toelichting van gehanteerde begrippen\" van het “Algemeen accountantsprotocol financiële productieverantwoording WMO en Jeugdwet 2022”. \n\nIn productcategorie 50 kunt u maatwerkarrangementen kwijt die in Profielen (in het tabblad Productcodes te herkennen aan de codes die beginnen met een (‘P’) worden weergegeven.\n\nIn productcategorie 52 vermeldt u producten of arrangementen die niet bekostigd zijn op basis van een input- of outputfinanciering (P*Q). Hierbij kunt u denken aan bekostigingsvormen als taakgerichte productieafspraken, subsidiabele kosten, lumpsumbekostiging of overige specifieke bekostigingsvormen. Verder biedt dit onderdeel tevens de mogelijkheid om correcties weer te geven. Hierbij kunt u bijvoorbeeld denken aan correcties uit voorgaande jaren n.a.v. een accountantscontrole. De regel correcties is niet bedoeld om gerealiseerde overproductie of doelmatigheidscorrecties weer te geven. \n\nIn productcategorie 55 en 56 verantwoordt u de productie die u respectievelijk leverde op basis van afspraken vanuit het Landelijk Transitie Arrangement en via de Landelijk Ingekochte Zorg. Het LTA beschrijft de afspraken tussen alle gemeenten en de zorgaanbieders die (mogelijk) in aanmerking komen voor landelijke afspraken voor specialistische functies. Producten die hieronder vallen, zijn onderaan opgenomen en 'geel gearceerd' in het tabblad Productcodes en zijn te herkennen aan de codes die beginnen met een ‘L’.  \n\nIndien u gebruik maakt van de Toelichtingsblokken, verzoeken wij u, indien mogelijk, te verwijzen naar het betreffende regelnummer. "]
[]
[null,"Tabblad ‘Productcodes’"]
[null,"Hanteert de gemeente waar u zorg levert de landelijke standaardproductcodes conform iJW3.1, dan kunt u gebruik maken van het tabblad Productcodes. Hierin is de Standaardproductcodelijst opgenomen conform de landelijke I-standaarden https://www.istandaarden.nl/ijw/releases/release-ijw-3.1.1). Door de beveiliging van de werkbladen is het niet mogelijk om de standaardproductcodes te knippen en te plakken. Om de omschrijvingen en codes te verwerken in het verantwoordingsformat typt u in het gewenste veld in het tabblad van de gemeente waarover u verantwoordt \"=\",  vervolgens gaat u naar het tabblad \"Productcodes\" en kiest u het gewenste/geleverde product en drukt u tot slot op Enter."]
[null,"Tabblad ‘Import Productcodes’ "]
[null,"Voor de gevorderden Excel gebruikers is de mogelijkheid toegevoegd om een eigen tarievenlijst in te voeren om zo door middel van formules de productprijzen \"op te halen\" op de verantwoordingsformulieren per gemeente. Dit doet u als volgt:\nStap 1: maak een lijst van alle producten per gemeente inclusief code en prijs en kopieer deze naar dit tabblad. Let erop dat iedere combinatie van product en gemeente slechts 1x voorkomt op de lijst.\nStap 2: maak de verantwoordingsformulieren aan per gemeente (zie ook de toelichting op Tabblad ‘Overzicht gemeenten’)\nStap 3: op het tabblad Gemeente voert u geen bedrag in voor de \"Prijs in €\", maar maakt u gebruik van de functie SOMMEN.ALS. \nStap 4: in cel J22 is een voorbeeld formule te vinden\n\nVoorbeeld van uitvoering:\n1. Selecteer cel J22\n2. voer in: =SOMMEN.ALS(\n3. Kies het optelbereik; dat is kolom D op het tabblad Import Productcodes\n4. Kies het eerste criteriumbereik; dat is kolom B op het tabblad Import Productcodes (\"code\")\n5. Geef het eerste criterium op; verwijs naar cel G22 waar u de productcode heeft opgegeven\n6. Kies het tweede criteriumbereik; dat is kolom C op het tabblad Import Productcodes (\"gemeente\")\n7. Geef het tweede criterium op; verwijs naar cel D9 waar de gemeente naam is opgegeven toen u het formulier aanmaakte. Dit is een beveiligde cel, dus de verwijzing moet u handmatig invoeren.\n8. De formule (inclusief de juiste $$ posities) is nu: =SOMMEN.ALS('Import Productcodes'!$D:$D;'Import Productcodes'!$B:$B;G22;'Import Productcodes'!$C:$C;$D$9). Deze formule kunt u kopieren naar andere rijen en tabbladen."]
[null,"Tips:\n1. Indien of de productcode of de gemeentenaam niet exact overeenkomt met de productcode/gemeentenaam op het formulier, \ndan zal de prijs € 0,- zijn.\n2. Indien een combinatie van productcode en gemeentenaam tweemaal voorkomt in de tarievenlijst op tabblad Import Productcodes, dan worden de prijzen bij elkaar opgeteld. U kunt de formule voorwaardelijk maken door ALS en AANTALLEN.ALS toe te voegen en een gecombineerde formule te maken, waarbij er geen prijs wordt weergegeven als de uitkomst van AANTALLEN.ALS niet gelijk is aan 1 (en dus vaker dan 1x of geen enkele keer voorkomt in de lijst). De functie wordt dan: \n=ALS(AANTALLEN.ALS('Import Productcodes'!$D:$D;'Import Productcodes'!$B:$B;G22;'Import Productcodes'!$C:$C;$D$9)<>1;0;\nSOMMEN.ALS('Import Productcodes'!$D:$D;'Import Productcodes'!$B:$B;G22;'Import Productcodes'!$C:$C;$D$9))\n"]
[null,"Disclaimer"]
[null,"Deze uitgave is met grote zorgvuldigheid en met gebruikmaking van de meest actuele gegevens tot stand gekomen. Het is evenwel niet geheel uitgesloten dat de informatie in deze uitgave onjuistheden en/of onvolkomenheden bevat. AAG aanvaardt geen aansprakelijkheid voor directe of indirecte schade ontstaan door eventuele onjuistheden en/of onvolkomenheden. Aan de inhoud van deze uitgave kunnen geen rechten worden ontleend."]

{"sheet":"Inleesinstructie","index":1,"n_rows":16,"n_cols":2,"rows_kept":16,"cut":false,"hidden":false,"merged":[]}
[null,"Invulinstructie Financiële productieverantwoording Jeugdwet"]
[]
[null,"Jeugdwet INLEESINSTRUCTIE "]
[]
[null,"Algemeen"]
[null,"Met ingang van het verantwoordingsformat 2020 is de functionaliteit tot het inlezen van de productieverantwoording toegevoegd. Dit betreft een optionele functionaliteit, u kunt ook op de reguliere manier (zie invulinstructie) het format vullen. U bent volledig vrij in de keuze of u de inleesfunctie gebruikt, maar let op: u kunt niet beide methoden hanteren: kies vooraf of u gebruik maakt van de inleesfunctionaliteit (lees hier verder), of dat u het op de reguliere manier verwerkt (zie invulinstructie). Vooral voor organisaties met veel verschillende producten en/of gemeenten, kan deze optie veel tijd besparen. Het gebruiken van deze functionaliteit vraagt geen extra inspanningen in het voortraject (het traject voorafgaand aan het vullen van dit format). U bereidt de verantwoording voor, zoals u dat ook vanuit voorgaande jaren gewend bent en verwerkt de gegevens in het tabblad \"Inleesblad\". Het format genereert vervolgens de benodigde tabbladen en verwerkt uw invoer. Als het model klaar is, verschijnt er een melding en dient u enkel nog de output te controleren. Controleer vooral of de totaaltellingen aansluiten bij uw input."]
[null,"Werkwijze"]
[null,"* Voer de voorbereidende werkzaamheden voor uw verantwoording uit in uw bronbestand, zoals u vanuit voorgaande jaren gewend bent."]
[null,"* Verwerk vervolgens de gegevens uit het bronbestand in dit format door het tabblad \"Inleesblad\" te vullen. Afhankelijk van uw voorbereiding kunt u dit vrij eenvoudig doen door gebruik te maken van de draaitabelfunctie van Excel op uw bronbestand om vervolgens de gegevens te kopiëren en plakken in dit format. Indien u hier minder bekend mee bent, kunt u de gegevens aggregeren zoals u dat ook voorgaande jaren heeft gedaan. Het is van belang dat de regels volledig zijn gevuld en dat er geen lege cellen in uw input staan. In het format zijn hiervoor verschillende controles ingebouwd."]
[null,"* Controleer of het totaal van de door u in het tabblad \"Inleesblad\" opgenomen gegevens aansluit met uw eigen berekeningen. Indien dit het geval is kunt u het verwerken laten starten door te klikken op de knop \"Verwerk gegevens in verantwoordingsformat -Start-\". Het format verwerkt vervolgens de gegevens voor u."]
[null,"* Zodra het format klaar is, verschijnt hiervan een melding. Controleert u vervolgens nauwkeurig de output. Voor het aansluiten van de totalen kunt u eenvoudig gebruik maken van de totalen opgenomen in het tabblad \"Inleesblad\". Onderstaand ziet u een voorbeeld van een juist verwerkte input."]
[]
[null,"Disclaimer"]
[null,"Deze functionaliteit is met grote zorgvuldigheid opgenomen. Gezien de grote diversiteit in zorgorganisaties en organisatiespecifieke afspraken, kan het onverhoopt voorkomen dat het format de gegevens niet volledig juist kan verwerken. Bent u zich hiervan bewust en controleert u de output zorgvuldig om eventuele onjuistheden te voorkomen."]
[]
[null,"Voorbeeld van een goed ingevuld \"inleesblad\" (P en Q zijn fictief)"]

{"sheet":"Inleesblad","index":2,"n_rows":1004,"n_cols":13,"rows_kept":1004,"cut":false,"hidden":false,"merged":[]}
[{"$f":"COUNTIF($C$4:$I$1003,\"<>\"&\"\")","v":0},null,"Uitvraag inleesbestand"]
[{"$f":"AND(COUNTIF($C$4:$C$1003,\"<>\"&\"\")=COUNTIF($D$4:$D$1003,\"<>\"&\"\"),COUNTIF($C$4:$C$1003,\"<>\"&\"\")=COUNTIF($E$4:$E$1003,\"<>\"&\"\"),COUNTIF($C$4:$C$1003,\"<>\"&\"\")=COUNTIF($F$4:$F$1003,\"<>\"&\"\"),COUNTIF($C$4:$C$1003,\"<>\"&\"\")=COUNTIF($G$4:$G$1003,\"<>\"&\"\"),COUNTIF($C$4:$C$1003,\"<>\"&\"\")=COUNTIF($H$4:$H$1003,\"<>\"&\"\"),COUNTIF($C$4:$C$1003,\"<>\"&\"\")=COUNTIF($I$4:$I$1003,\"<>\"&\"\"))","v":true},null,"Er bevinden zich lege cellen in onderstaande input. Hierdoor kan het model de verantwoording niet volledig vullen. Controleer uw input alvorens u verder gaat."]
[{"$f":"C3&\"_\"&(D3*100+COUNTIFS(D:D,D3,C:C,C3)-COUNTIFS(D3:$D$1003,D3,C3:$C$1003,C3))","v":{"$error":"#VALUE!"}},null,"Gemeente","Productcategorie","Code","Omschrijving","Eenheid","Prijs in € (P)","Aantal (Q)","Realisatie in €"]
[null,null,null,null,null,null,null,null,null,{"$f":"IF(AND(H4<>\"\",I4<>\"\"),H4*I4,\"\")","v":""}]
[null,null,null,null,null,null,null,null,null,{"$f":"IF(AND(H5<>\"\",I5<>\"\"),H5*I5,\"\")","v":""}]
[null,null,null,null,null,null,null,null,null,""]
[null,null,null,null,null,null,null,null,null,""]
[null,null,null,null,null,null,null,null,null,""]
[null,null,null,null,null,null,null,null,null,""]
[null,null,null,null,null,null,null,null,null,""]
[null,null,null,null,null,null,null,null,null,""]
[null,null,null,null,null,null,null,null,null,"",null,"Totaal realisatie (P*Q)","Totaal verwerkt"]
[null,null,null,null,null,null,null,null,null,"",null,{"$f":"ROUND(SUM(J:J),2)","v":0},{"$f":"ROUND(Totaalblad!F18,2)","v":0}]
[null,null,null,null,null,null,null,null,null,""]
[null,null,null,null,null,null,null,null,null,""]
[null,null,null,null,null,null,null,null,null,""]
[null,null,null,null,null,null,null,null,null,""]
[null,null,null,null,null,null,null,null,null,""]
[null,null,null,null,null,null,null,null,null,""]
[null,null,null,null,null,null,null,null,null,""]
[null,null,null,null,null,null,null,null,null,""]
[null,null,null,null,null,null,null,null,null,""]
[null,null,null,null,null,null,null,null,null,""]
[null,null,null,null,null,null,null,null,null,""]
[null,null,null,null,null,null,null,null,null,""]
[null,null,null,null,null,null,null,null,null,""]
[null,null,null,null,null,null,null,null,null,""]
[null,null,null,null,null,null,null,null,null,""]
[null,null,null,null,null,null,null,null,null,""]
[null,null,null,null,null,null,null,null,null,""]
[null,null,null,null,null,null,null,null,null,""]
[null,null,null,null,null,null,null,null,null,""]
[null,null,null,null,null,null,null,null,null,""]
[null,null,null,null,null,null,null,null,null,""]
[null,null,null,null,null,null,null,null,null,""]
[null,null,null,null,null,null,null,null,null,""]
[null,null,null,null,null,null,null,null,null,""]
[null,null,null,null,null,null,null,null,null,""]
[null,null,null,null,null,null,null,null,null,""]
[null,null,null,null,null,null,null,null,null,""]
[null,null,null,null,null,null,null,null,null,""]
[null,null,null,null,null,null,null,null,null,""]
[null,null,null,null,null,null,null,null,null,""]
[null,null,null,null,null,null,null,null,null,""]
[null,null,null,null,null,null,null,null,null,""]
[null,null,null,null,null,null,null,null,null,""]
[null,null,null,null,null,null,null,null,null,""]
[null,null,null,null,null,null,null,null,null,""]
[null,null,null,null,null,null,null,null,null,""]
[null,null,null,null,null,null,null,null,null,""]
[null,null,null,null,null,null,null,null,null,""]
[null,null,null,null,null,null,null,null,null,""]
[null,null,null,null,null,null,null,null,null,""]
[null,null,null,null,null,null,null,null,null,""]
[null,null,null,null,null,null,null,null,null,""]
[null,null,null,null,null,null,null,null,null,""]
[null,null,null,null,null,null,null,null,null,""]
[null,null,null,null,null,null,null,null,null,""]
[null,null,null,null,null,null,null,null,null,""]
[null,null,null,null,null,null,null,null,null,""]
[null,null,null,null,null,null,null,null,null,""]
[null,null,null,null,null,null,null,null,null,""]
[null,null,null,null,null,null,null,null,null,""]
[null,null,null,null,null,null,null,null,null,""]
[null,null,null,null,null,null,null,null,null,""]
[null,null,null,null,null,null,null,null,null,""]
[null,null,null,null,null,null,null,null,null,""]
[null,null,null,null,null,null,null,null,null,""]
[null,null,null,null,null,null,null,null,null,{"$f":"IF(AND(H69<>\"\",I69<>\"\"),H69*I69,\"\")","v":""}]
[null,null,null,null,null,null,null,null,null,""]
[null,null,null,null,null,null,null,null,null,""]
[null,null,null,null,null,null,null,null,null,""]
[null,null,null,null,null,null,null,null,null,""]
[null,null,null,null,null,null,null,null,null,""]
[null,null,null,null,null,null,null,null,null,""]
[null,null,null,null,null,null,null,null,null,""]
[null,null,null,null,null,null,null,null,null,""]
[null,null,null,null,null,null,null,null,null,""]
[null,null,null,null,null,null,null,null,null,""]
[null,null,null,null,null,null,null,null,null,""]
[null,null,null,null,null,null,null,null,null,""]
[null,null,null,null,null,null,null,null,null,""]
[null,null,null,null,null,null,null,null,null,""]
[null,null,null,null,null,null,null,null,null,""]
[null,null,null,null,null,null,null,null,null,""]
[null,null,null,null,null,null,null,null,null,""]
[null,null,null,null,null,null,null,null,null,""]
[null,null,null,null,null,null,null,null,null,""]
[null,null,null,null,null,null,null,null,null,""]
[null,null,null,null,null,null,null,null,null,""]
[null,null,null,null,null,null,null,null,null,""]
[null,null,null,null,null,null,null,null,null,""]
[null,null,null,null,null,null,null,null,null,""]
[null,null,null,null,null,null,null,null,null,""]
[null,null,null,null,null,null,null,null,null,""]
[null,null,null,null,null,null,null,null,null,""]
[null,null,null,null,null,null,null,null,null,""]
[null,null,null,null,null,null,null,null,null,""]
[null,null,null,null,null,null,null,null,null,""]
[null,null,null,null,null,null,null,null,null,""]
[null,null,null,null,null,null,null,null,null,""]
[null,null,null,null,null,null,null,null,null,""]
[null,null,null,null,null,null,null,null,null,""]
[null,null,null,null,null,null,null,null,null,""]
[null,null,null,null,null,null,null,null,null,""]
[null,null,null,null,null,null,null,null,null,""]
[null,null,null,null,null,null,null,null,null,""]
[null,null,null,null,null,null,null,null,null,""]
[null,null,null,null,null,null,null,null,null,""]
[null,null,null,null,null,null,null,null,null,""]
[null,null,null,null,null,null,null,null,null,""]
[null,null,null,null,null,null,null,null,null,""]
[null,null,null,null,null,null,null,null,null,""]
[null,null,null,null,null,null,null,null,null,""]
[null,null,null,null,null,null,null,null,null,""]
[null,null,null,null,null,null,null,null,null,""]
[null,null,null,null,null,null,null,null,null,""]
[null,null,null,null,null,null,null,null,null,""]
[null,null,null,null,null,null,null,null,null,""]
[null,null,null,null,null,null,null,null,null,""]
[null,null,null,null,null,null,null,null,null,""]
[null,null,null,null,null,null,null,null,null,""]
[null,null,null,null,null,null,null,null,null,""]
[null,null,null,null,null,null,null,null,null,""]
[null,null,null,null,null,null,null,null,null,""]
[null,null,null,null,null,null,null,null,null,""]
[null,null,null,null,null,null,null,null,null,""]
[null,null,null,null,null,null,null,null,null,""]
[null,null,null,null,null,null,null,null,null,""]
[null,null,null,null,null,null,null,null,null,""]
[null,null,null,null,null,null,null,null,null,""]
[null,null,null,null,null,null,null,null,null,""]
[null,null,null,null,null,null,null,null,null,{"$f":"IF(AND(H133<>\"\",I133<>\"\"),H133*I133,\"\")","v":""}]
[null,null,null,null,null,null,null,null,null,""]
[null,null,null,null,null,null,null,null,null,""]
[null,null,null,null,null,null,null,null,null,""]
[null,null,null,null,null,null,null,null,null,""]
[null,null,null,null,null,null,null,null,null,""]
[null,null,null,null,null,null,null,null,null,""]
[null,null,null,null,null,null,null,null,null,""]
[null,null,null,null,null,null,null,null,null,""]
[null,null,null,null,null,null,null,null,null,""]
[null,null,null,null,null,null,null,null,null,""]
[null,null,null,null,null,null,null,null,null,""]
[null,null,null,null,null,null,null,null,null,""]
[null,null,null,null,null,null,null,null,null,""]
[null,null,null,null,null,null,null,null,null,""]
[null,null,null,null,null,null,null,null,null,""]
[null,null,null,null,null,null,null,null,null,""]
[null,null,null,null,null,null,null,null,null,""]
[null,null,null,null,null,null,null,null,null,""]
[null,null,null,null,null,null,null,null,null,""]
[null,null,null,null,null,null,null,null,null,""]
[null,null,null,null,null,null,null,null,null,""]
[null,null,null,null,null,null,null,null,null,""]
[null,null,null,null,null,null,null,null,null,""]
[null,null,null,null,null,null,null,null,null,""]
[null,null,null,null,null,null,null,null,null,""]
[null,null,null,null,null,null,null,null,null,""]
[null,null,null,null,null,null,null,null,null,""]
[null,null,null,null,null,null,null,null,null,""]
[null,null,null,null,null,null,null,null,null,""]
[null,null,null,null,null,null,null,null,null,""]
[null,null,null,null,null,null,null,null,null,""]
[null,null,null,null,null,null,null,null,null,""]
[null,null,null,null,null,null,null,null,null,""]
[null,null,null,null,null,null,null,null,null,""]
[null,null,null,null,null,null,null,null,null,""]
[null,null,null,null,null,null,null,null,null,""]
[null,null,null,null,null,null,null,null,null,""]
[null,null,null,null,null,null,null,null,null,""]
[null,null,null,null,null,null,null,null,null,""]
[null,null,null,null,null,null,null,null,null,""]
[null,null,null,null,null,null,null,null,null,""]
[null,null,null,null,null,null,null,null,null,""]
[null,null,null,null,null,null,null,null,null,""]
[null,null,null,null,null,null,null,null,null,""]
[null,null,null,null,null,null,null,null,null,""]
[null,null,null,null,null,null,null,null,null,""]
[null,null,null,null,null,null,null,null,null,""]
[null,null,null,null,null,null,null,null,null,""]
[null,null,null,null,null,null,null,null,null,""]
[null,null,null,null,null,null,null,null,null,""]
[null,null,null,null,null,null,null,null,null,""]
[null,null,null,null,null,null,null,null,null,""]
[null,null,null,null,null,null,null,null,null,""]
[null,null,null,null,null,null,null,null,null,""]
[null,null,null,null,null,null,null,null,null,""]
[null,null,null,null,null,null,null,null,null,""]
[null,null,null,null,null,null,null,null,null,""]
[null,null,null,null,null,null,null,null,null,""]
[null,null,null,null,null,null,null,null,null,""]
[null,null,null,null,null,null,null,null,null,""]
[null,null,null,null,null,null,null,null,null,""]
[null,null,null,null,null,null,null,null,null,""]
[null,null,null,null,null,null,null,null,null,""]
[null,null,null,null,null,null,null,null,null,{"$f":"IF(AND(H197<>\"\",I197<>\"\"),H197*I197,\"\")","v":""}]
[null,null,null,null,null,null,null,null,null,""]
[null,null,null,null,null,null,null,null,null,""]
[null,null,null,null,null,null,null,null,null,""]
[null,null,null,null,null,null,null,null,null,""]
[null,null,null,null,null,null,null,null,null,""]
[null,null,null,null,null,null,null,null,null,""]
[null,null,null,null,null,null,null,null,null,""]
[null,null,null,null,null,null,null,null,null,""]
[null,null,null,null,null,null,null,null,null,""]
[null,null,null,null,null,null,null,null,null,""]
[null,null,null,null,null,null,null,null,null,""]
[null,null,null,null,null,null,null,null,null,""]
[null,null,null,null,null,null,null,null,null,""]
[null,null,null,null,null,null,null,null,null,""]
[null,null,null,null,null,null,null,null,null,""]
[null,null,null,null,null,null,null,null,null,""]
[null,null,null,null,null,null,null,null,null,""]
[null,null,null,null,null,null,null,null,null,""]
[null,null,null,null,null,null,null,null,null,""]
[null,null,null,null,null,null,null,null,null,""]
[null,null,null,null,null,null,null,null,null,""]
[null,null,null,null,null,null,null,null,null,""]
[null,null,null,null,null,null,null,null,null,""]
[null,null,null,null,null,null,null,null,null,""]
[null,null,null,null,null,null,null,null,null,""]
[null,null,null,null,null,null,null,null,null,""]
[null,null,null,null,null,null,null,null,null,""]
[null,null,null,null,null,null,null,null,null,""]
[null,null,null,null,null,null,null,null,null,""]
[null,null,null,null,null,null,null,null,null,""]
[null,null,null,null,null,null,null,null,null,""]
[null,null,null,null,null,null,null,null,null,""]
[null,null,null,null,null,null,null,null,null,""]
[null,null,null,null,null,null,null,null,null,""]
[null,null,null,null,null,null,null,null,null,""]
[null,null,null,null,null,null,null,null,null,""]
[null,null,null,null,null,null,null,null,null,""]
[null,null,null,null,null,null,null,null,null,""]
[null,null,null,null,null,null,null,null,null,""]
[null,null,null,null,null,null,null,null,null,""]
[null,null,null,null,null,null,null,null,null,""]
[null,null,null,null,null,null,null,null,null,""]
[null,null,null,null,null,null,null,null,null,""]
[null,null,null,null,null,null,null,null,null,""]
[null,null,null,null,null,null,null,null,null,""]
[null,null,null,null,null,null,null,null,null,""]
[null,null,null,null,null,null,null,null,null,""]
[null,null,null,null,null,null,null,null,null,""]
[null,null,null,null,null,null,null,null,null,""]
[null,null,null,null,null,null,null,null,null,""]
[null,null,null,null,null,null,null,null,null,""]
[null,null,null,null,null,null,null,null,null,""]
[null,null,null,null,null,null,null,null,null,""]
[null,null,null,null,null,null,null,null,null,""]
[null,null,null,null,null,null,null,null,null,""]
[null,null,null,null,null,null,null,null,null,""]
[null,null,null,null,null,null,null,null,null,""]
[null,null,null,null,null,null,null,null,null,""]
[null,null,null,null,null,null,null,null,null,""]
[null,null,null,null,null,null,null,null,null,""]
[null,null,null,null,null,null,null,null,null,""]
[null,null,null,null,null,null,null,null,null,""]
[null,null,null,null,null,null,null,null,null,""]
[null,null,null,null,null,null,null,null,null,{"$f":"IF(AND(H261<>\"\",I261<>\"\"),H261*I261,\"\")","v":""}]
[null,null,null,null,null,null,null,null,null,""]
[null,null,null,null,null,null,null,null,null,""]
[null,null,null,null,null,null,null,null,null,""]
[null,null,null,null,null,null,null,null,null,""]
[null,null,null,null,null,null,null,null,null,""]
[null,null,null,null,null,null,null,null,null,""]
[null,null,null,null,null,null,null,null,null,""]
[null,null,null,null,null,null,null,null,null,""]
[null,null,null,null,null,null,null,null,null,""]
[null,null,null,null,null,null,null,null,null,""]
[null,null,null,null,null,null,null,null,null,""]
[null,null,null,null,null,null,null,null,null,""]
[null,null,null,null,null,null,null,null,null,""]
[null,null,null,null,null,null,null,null,null,""]
[null,null,null,null,null,null,null,null,null,""]
[null,null,null,null,null,null,null,null,null,""]
[null,null,null,null,null,null,null,null,null,""]
[null,null,null,null,null,null,null,null,null,""]
[null,null,null,null,null,null,null,null,null,""]
[null,null,null,null,null,null,null,null,null,""]
[null,null,null,null,null,null,null,null,null,""]
[null,null,null,null,null,null,null,null,null,""]
[null,null,null,null,null,null,null,null,null,""]
[null,null,null,null,null,null,null,null,null,""]
[null,null,null,null,null,null,null,null,null,""]
[null,null,null,null,null,null,null,null,null,""]
[null,null,null,null,null,null,null,null,null,""]
[null,null,null,null,null,null,null,null,null,""]
[null,null,null,null,null,null,null,null,null,""]
[null,null,null,null,null,null,null,null,null,""]
[null,null,null,null,null,null,null,null,null,""]
[null,null,null,null,null,null,null,null,null,""]
[null,null,null,null,null,null,null,null,null,""]
[null,null,null,null,null,null,null,null,null,""]
[null,null,null,null,null,null,null,null,null,""]
[null,null,null,null,null,null,null,null,null,""]
[null,null,null,null,null,null,null,null,null,""]
[null,null,null,null,null,null,null,null,null,""]
[null,null,null,null,null,null,null,null,null,""]
[null,null,null,null,null,null,null,null,null,""]
[null,null,null,null,null,null,null,null,null,""]
[null,null,null,null,null,null,null,null,null,""]
[null,null,null,null,null,null,null,null,null,""]
[null,null,null,null,null,null,null,null,null,""]
[null,null,null,null,null,null,null,null,null,""]
[null,null,null,null,null,null,null,null,null,""]
[null,null,null,null,null,null,null,null,null,""]
[null,null,null,null,null,null,null,null,null,""]
[null,null,null,null,null,null,null,null,null,""]
[null,null,null,null,null,null,null,null,null,""]
[null,null,null,null,null,null,null,null,null,""]
[null,null,null,null,null,null,null,null,null,""]
[null,null,null,null,null,null,null,null,null,""]
[null,null,null,null,null,null,null,null,null,""]
[null,null,null,null,null,null,null,null,null,""]
[null,null,null,null,null,null,null,null,null,""]
[null,null,null,null,null,null,null,null,null,""]
[null,null,null,null,null,null,null,null,null,""]
[null,null,null,null,null,null,null,null,null,""]
[null,null,null,null,null,null,null,null,null,""]
[null,null,null,null,null,null,null,null,null,""]
[null,null,null,null,null,null,null,null,null,""]
[null,null,null,null,null,null,null,null,null,""]
[null,null,null,null,null,null,null,null,null,{"$f":"IF(AND(H325<>\"\",I325<>\"\"),H325*I325,\"\")","v":""}]
[null,null,null,null,null,null,null,null,null,""]
[null,null,null,null,null,null,null,null,null,""]
[null,null,null,null,null,null,null,null,null,""]
[null,null,null,null,null,null,null,null,null,""]
[null,null,null,null,null,null,null,null,null,""]
[null,null,null,null,null,null,null,null,null,""]
[null,null,null,null,null,null,null,null,null,""]
[null,null,null,null,null,null,null,null,null,""]
[null,null,null,null,null,null,null,null,null,""]
[null,null,null,null,null,null,null,null,null,""]
[null,null,null,null,null,null,null,null,null,""]
[null,null,null,null,null,null,null,null,null,""]
[null,null,null,null,null,null,null,null,null,""]
[null,null,null,null,null,null,null,null,null,""]
[null,null,null,null,null,null,null,null,null,""]
[null,null,null,null,null,null,null,null,null,""]
[null,null,null,null,null,null,null,null,null,""]
[null,null,null,null,null,null,null,null,null,""]
[null,null,null,null,null,null,null,null,null,""]
[null,null,null,null,null,null,null,null,null,""]
[null,null,null,null,null,null,null,null,null,""]
[null,null,null,null,null,null,null,null,null,""]
[null,null,null,null,null,null,null,null,null,""]
[null,null,null,null,null,null,null,null,null,""]
[null,null,null,null,null,null,null,null,null,""]
[null,null,null,null,null,null,null,null,null,""]
[null,null,null,null,null,null,null,null,null,""]
[null,null,null,null,null,null,null,null,null,""]
[null,null,null,null,null,null,null,null,null,""]
[null,null,null,null,null,null,null,null,null,""]
[null,null,null,null,null,null,null,null,null,""]
[null,null,null,null,null,null,null,null,null,""]
[null,null,null,null,null,null,null,null,null,""]
[null,null,null,null,null,null,null,null,null,""]
[null,null,null,null,null,null,null,null,null,""]
[null,null,null,null,null,null,null,null,null,""]
[null,null,null,null,null,null,null,null,null,""]
[null,null,null,null,null,null,null,null,null,""]
[null,null,null,null,null,null,null,null,null,""]
[null,null,null,null,null,null,null,null,null,""]
[null,null,null,null,null,null,null,null,null,""]
[null,null,null,null,null,null,null,null,null,""]
[null,null,null,null,null,null,null,null,null,""]
[null,null,null,null,null,null,null,null,null,""]
[null,null,null,null,null,null,null,null,null,""]
[null,null,null,null,null,null,null,null,null,""]
[null,null,null,null,null,null,null,null,null,""]
[null,null,null,null,null,null,null,null,null,""]
[null,null,null,null,null,null,null,null,null,""]
[null,null,null,null,null,null,null,null,null,""]
[null,null,null,null,null,null,null,null,null,""]
[null,null,null,null,null,null,null,null,null,""]
[null,null,null,null,null,null,null,null,null,""]
[null,null,null,null,null,null,null,null,null,""]
[null,null,null,null,null,null,null,null,null,""]
[null,null,null,null,null,null,null,null,null,""]
[null,null,null,null,null,null,null,null,null,""]
[null,null,null,null,null,null,null,null,null,""]
[null,null,null,null,null,null,null,null,null,""]
[null,null,null,null,null,null,null,null,null,""]
[null,null,null,null,null,null,null,null,null,""]
[null,null,null,null,null,null,null,null,null,""]
[null,null,null,null,null,null,null,null,null,""]
[null,null,null,null,null,null,null,null,null,{"$f":"IF(AND(H389<>\"\",I389<>\"\"),H389*I389,\"\")","v":""}]
[null,null,null,null,null,null,null,null,null,""]
[null,null,null,null,null,null,null,null,null,""]
[null,null,null,null,null,null,null,null,null,""]
[null,null,null,null,null,null,null,null,null,""]
[null,null,null,null,null,null,null,null,null,""]
[null,null,null,null,null,null,null,null,null,""]
[null,null,null,null,null,null,null,null,null,""]
[null,null,null,null,null,null,null,null,null,""]
[null,null,null,null,null,null,null,null,null,""]
[null,null,null,null,null,null,null,null,null,""]
[null,null,null,null,null,null,null,null,null,""]
[null,null,null,null,null,null,null,null,null,""]
[null,null,null,null,null,null,null,null,null,""]
[null,null,null,null,null,null,null,null,null,""]
[null,null,null,null,null,null,null,null,null,""]
[null,null,null,null,null,null,null,null,null,""]
[null,null,null,null,null,null,null,null,null,""]
[null,null,null,null,null,null,null,null,null,""]
[null,null,null,null,null,null,null,null,null,""]
[null,null,null,null,null,null,null,null,null,""]
[null,null,null,null,null,null,null,null,null,""]
[null,null,null,null,null,null,null,null,null,""]
[null,null,null,null,null,null,null,null,null,""]
[null,null,null,null,null,null,null,null,null,""]
[null,null,null,null,null,null,null,null,null,""]
[null,null,null,null,null,null,null,null,null,""]
[null,null,null,null,null,null,null,null,null,""]
[null,null,null,null,null,null,null,null,null,""]
[null,null,null,null,null,null,null,null,null,""]
[null,null,null,null,null,null,null,null,null,""]
[null,null,null,null,null,null,null,null,null,""]
[null,null,null,null,null,null,null,null,null,""]
[null,null,null,null,null,null,null,null,null,""]
[null,null,null,null,null,null,null,null,null,""]
[null,null,null,null,null,null,null,null,null,""]
[null,null,null,null,null,null,null,null,null,""]
[null,null,null,null,null,null,null,null,null,""]
[null,null,null,null,null,null,null,null,null,""]
[null,null,null,null,null,null,null,null,null,""]
[null,null,null,null,null,null,null,null,null,""]
[null,null,null,null,null,null,null,null,null,""]
[null,null,null,null,null,null,null,null,null,""]
[null,null,null,null,null,null,null,null,null,""]
[null,null,null,null,null,null,null,null,null,""]
[null,null,null,null,null,null,null,null,null,""]
[null,null,null,null,null,null,null,null,null,""]
[null,null,null,null,null,null,null,null,null,""]
[null,null,null,null,null,null,null,null,null,""]
[null,null,null,null,null,null,null,null,null,""]
[null,null,null,null,null,null,null,null,null,""]
[null,null,null,null,null,null,null,null,null,""]
[null,null,null,null,null,null,null,null,null,""]
[null,null,null,null,null,null,null,null,null,""]
[null,null,null,null,null,null,null,null,null,""]
[null,null,null,null,null,null,null,null,null,""]
[null,null,null,null,null,null,null,null,null,""]
[null,null,null,null,null,null,null,null,null,""]
[null,null,null,null,null,null,null,null,null,""]
[null,null,null,null,null,null,null,null,null,""]
[null,null,null,null,null,null,null,null,null,""]
[null,null,null,null,null,null,null,null,null,""]
[null,null,null,null,null,null,null,null,null,""]
[null,null,null,null,null,null,null,null,null,""]
[null,null,null,null,null,null,null,null,null,{"$f":"IF(AND(H453<>\"\",I453<>\"\"),H453*I453,\"\")","v":""}]
[null,null,null,null,null,null,null,null,null,""]
[null,null,null,null,null,null,null,null,null,""]
[null,null,null,null,null,null,null,null,null,""]
[null,null,null,null,null,null,null,null,null,""]
[null,null,null,null,null,null,null,null,null,""]
[null,null,null,null,null,null,null,null,null,""]
[null,null,null,null,null,null,null,null,null,""]
[null,null,null,null,null,null,null,null,null,""]
[null,null,null,null,null,null,null,null,null,""]
[null,null,null,null,null,null,null,null,null,""]
[null,null,null,null,null,null,null,null,null,""]
[null,null,null,null,null,null,null,null,null,""]
[null,null,null,null,null,null,null,null,null,""]
[null,null,null,null,null,null,null,null,null,""]
[null,null,null,null,null,null,null,null,null,""]
[null,null,null,null,null,null,null,null,null,""]
[null,null,null,null,null,null,null,null,null,""]
[null,null,null,null,null,null,null,null,null,""]
[null,null,null,null,null,null,null,null,null,""]
[null,null,null,null,null,null,null,null,null,""]
[null,null,null,null,null,null,null,null,null,""]
[null,null,null,null,null,null,null,null,null,""]
[null,null,null,null,null,null,null,null,null,""]
[null,null,null,null,null,null,null,null,null,""]
[null,null,null,null,null,null,null,null,null,""]
[null,null,null,null,null,null,null,null,null,""]
[null,null,null,null,null,null,null,null,null,""]
[null,null,null,null,null,null,null,null,null,""]
[null,null,null,null,null,null,null,null,null,""]
[null,null,null,null,null,null,null,null,null,""]
[null,null,null,null,null,null,null,null,null,""]
[null,null,null,null,null,null,null,null,null,""]
[null,null,null,null,null,null,null,null,null,""]
[null,null,null,null,null,null,null,null,null,""]
[null,null,null,null,null,null,null,null,null,""]
[null,null,null,null,null,null,null,null,null,""]
[null,null,null,null,null,null,null,null,null,""]
[null,null,null,null,null,null,null,null,null,""]
[null,null,null,null,null,null,null,null,null,""]
[null,null,null,null,null,null,null,null,null,""]
[null,null,null,null,null,null,null,null,null,""]
[null,null,null,null,null,null,null,null,null,""]
[null,null,null,null,null,null,null,null,null,""]
[null,null,null,null,null,null,null,null,null,""]
[null,null,null,null,null,null,null,null,null,""]
[null,null,null,null,null,null,null,null,null,""]
[null,null,null,null,null,null,null,null,null,""]
[null,null,null,null,null,null,null,null,null,""]
[null,null,null,null,null,null,null,null,null,""]
[null,null,null,null,null,null,null,null,null,""]
[null,null,null,null,null,null,null,null,null,""]
[null,null,null,null,null,null,null,null,null,""]
[null,null,null,null,null,null,null,null,null,""]
[null,null,null,null,null,null,null,null,null,""]
[null,null,null,null,null,null,null,null,null,""]
[null,null,null,null,null,null,null,null,null,""]
[null,null,null,null,null,null,null,null,null,""]
[null,null,null,null,null,null,null,null,null,""]
[null,null,null,null,null,null,null,null,null,""]
[null,null,null,null,null,null,null,null,null,""]
[null,null,null,null,null,null,null,null,null,""]
[null,null,null,null,null,null,null,null,null,""]
[null,null,null,null,null,null,null,null,null,""]
[null,null,null,null,null,null,null,null,null,{"$f":"IF(AND(H517<>\"\",I517<>\"\"),H517*I517,\"\")","v":""}]
[null,null,null,null,null,null,null,null,null,""]
[null,null,null,null,null,null,null,null,null,""]
[null,null,null,null,null,null,null,null,null,""]
[null,null,null,null,null,null,null,null,null,""]
[null,null,null,null,null,null,null,null,null,""]
[null,null,null,null,null,null,null,null,null,""]
[null,null,null,null,null,null,null,null,null,""]
[null,null,null,null,null,null,null,null,null,""]
[null,null,null,null,null,null,null,null,null,""]
[null,null,null,null,null,null,null,null,null,""]
[null,null,null,null,null,null,null,null,null,""]
[null,null,null,null,null,null,null,null,null,""]
[null,null,null,null,null,null,null,null,null,""]
[null,null,null,null,null,null,null,null,null,""]
[null,null,null,null,null,null,null,null,null,""]
[null,null,null,null,null,null,null,null,null,""]
[null,null,null,null,null,null,null,null,null,""]
[null,null,null,null,null,null,null,null,null,""]
[null,null,null,null,null,null,null,null,null,""]
[null,null,null,null,null,null,null,null,null,""]
[null,null,null,null,null,null,null,null,null,""]
[null,null,null,null,null,null,null,null,null,""]
[null,null,null,null,null,null,null,null,null,""]
[null,null,null,null,null,null,null,null,null,""]
[null,null,null,null,null,null,null,null,null,""]
[null,null,null,null,null,null,null,null,null,""]
[null,null,null,null,null,null,null,null,null,""]
[null,null,null,null,null,null,null,null,null,""]
[null,null,null,null,null,null,null,null,null,""]
[null,null,null,null,null,null,null,null,null,""]
[null,null,null,null,null,null,null,null,null,""]
[null,null,null,null,null,null,null,null,null,""]
[null,null,null,null,null,null,null,null,null,""]
[null,null,null,null,null,null,null,null,null,""]
[null,null,null,null,null,null,null,null,null,""]
[null,null,null,null,null,null,null,null,null,""]
[null,null,null,null,null,null,null,null,null,""]
[null,null,null,null,null,null,null,null,null,""]
[null,null,null,null,null,null,null,null,null,""]
[null,null,null,null,null,null,null,null,null,""]
[null,null,null,null,null,null,null,null,null,""]
[null,null,null,null,null,null,null,null,null,""]
[null,null,null,null,null,null,null,null,null,""]
[null,null,null,null,null,null,null,null,null,""]
[null,null,null,null,null,null,null,null,null,""]
[null,null,null,null,null,null,null,null,null,""]
[null,null,null,null,null,null,null,null,null,""]
[null,null,null,null,null,null,null,null,null,""]
[null,null,null,null,null,null,null,null,null,""]
[null,null,null,null,null,null,null,null,null,""]
[null,null,null,null,null,null,null,null,null,""]
[null,null,null,null,null,null,null,null,null,""]
[null,null,null,null,null,null,null,null,null,""]
[null,null,null,null,null,null,null,null,null,""]
[null,null,null,null,null,null,null,null,null,""]
[null,null,null,null,null,null,null,null,null,""]
[null,null,null,null,null,null,null,null,null,""]
[null,null,null,null,null,null,null,null,null,""]
[null,null,null,null,null,null,null,null,null,""]
[null,null,null,null,null,null,null,null,null,""]
[null,null,null,null,null,null,null,null,null,""]
[null,null,null,null,null,null,null,null,null,""]
[null,null,null,null,null,null,null,null,null,""]
[null,null,null,null,null,null,null,null,null,{"$f":"IF(AND(H581<>\"\",I581<>\"\"),H581*I581,\"\")","v":""}]
[null,null,null,null,null,null,null,null,null,""]
[null,null,null,null,null,null,null,null,null,""]
[null,null,null,null,null,null,null,null,null,""]
[null,null,null,null,null,null,null,null,null,""]
[null,null,null,null,null,null,null,null,null,""]
[null,null,null,null,null,null,null,null,null,""]
[null,null,null,null,null,null,null,null,null,""]
[null,null,null,null,null,null,null,null,null,""]
[null,null,null,null,null,null,null,null,null,""]
[null,null,null,null,null,null,null,null,null,""]
[null,null,null,null,null,null,null,null,null,""]
[null,null,null,null,null,null,null,null,null,""]
[null,null,null,null,null,null,null,null,null,""]
[null,null,null,null,null,null,null,null,null,""]
[null,null,null,null,null,null,null,null,null,""]
[null,null,null,null,null,null,null,null,null,""]
[null,null,null,null,null,null,null,null,null,""]
[null,null,null,null,null,null,null,null,null,""]
[null,null,null,null,null,null,null,null,null,""]
[null,null,null,null,null,null,null,null,null,""]
[null,null,null,null,null,null,null,null,null,""]
[null,null,null,null,null,null,null,null,null,""]
[null,null,null,null,null,null,null,null,null,""]
[null,null,null,null,null,null,null,null,null,""]
[null,null,null,null,null,null,null,null,null,""]
[null,null,null,null,null,null,null,null,null,""]
[null,null,null,null,null,null,null,null,null,""]
[null,null,null,null,null,null,null,null,null,""]
[null,null,null,null,null,null,null,null,null,""]
[null,null,null,null,null,null,null,null,null,""]
[null,null,null,null,null,null,null,null,null,""]
[null,null,null,null,null,null,null,null,null,""]
[null,null,null,null,null,null,null,null,null,""]
[null,null,null,null,null,null,null,null,null,""]
[null,null,null,null,null,null,null,null,null,""]
[null,null,null,null,null,null,null,null,null,""]
[null,null,null,null,null,null,null,null,null,""]
[null,null,null,null,null,null,null,null,null,""]
[null,null,null,null,null,null,null,null,null,""]
[null,null,null,null,null,null,null,null,null,""]
[null,null,null,null,null,null,null,null,null,""]
[null,null,null,null,null,null,null,null,null,""]
[null,null,null,null,null,null,null,null,null,""]
[null,null,null,null,null,null,null,null,null,""]
[null,null,null,null,null,null,null,null,null,""]
[null,null,null,null,null,null,null,null,null,""]
[null,null,null,null,null,null,null,null,null,""]
[null,null,null,null,null,null,null,null,null,""]
[null,null,null,null,null,null,null,null,null,""]
[null,null,null,null,null,null,null,null,null,""]
[null,null,null,null,null,null,null,null,null,""]
[null,null,null,null,null,null,null,null,null,""]
[null,null,null,null,null,null,null,null,null,""]
[null,null,null,null,null,null,null,null,null,""]
[null,null,null,null,null,null,null,null,null,""]
[null,null,null,null,null,null,null,null,null,""]
[null,null,null,null,null,null,null,null,null,""]
[null,null,null,null,null,null,null,null,null,""]
[null,null,null,null,null,null,null,null,null,""]
[null,null,null,null,null,null,null,null,null,""]
[null,null,null,null,null,null,null,null,null,""]
[null,null,null,null,null,null,null,null,null,""]
[null,null,null,null,null,null,null,null,null,""]
[null,null,null,null,null,null,null,null,null,{"$f":"IF(AND(H645<>\"\",I645<>\"\"),H645*I645,\"\")","v":""}]
[null,null,null,null,null,null,null,null,null,""]
[null,null,null,null,null,null,null,null,null,""]
[null,null,null,null,null,null,null,null,null,""]
[null,null,null,null,null,null,null,null,null,""]
[null,null,null,null,null,null,null,null,null,""]
[null,null,null,null,null,null,null,null,null,""]
[null,null,null,null,null,null,null,null,null,""]
[null,null,null,null,null,null,null,null,null,""]
[null,null,null,null,null,null,null,null,null,""]
[null,null,null,null,null,null,null,null,null,""]
[null,null,null,null,null,null,null,null,null,""]
[null,null,null,null,null,null,null,null,null,""]
[null,null,null,null,null,null,null,null,null,""]
[null,null,null,null,null,null,null,null,null,""]
[null,null,null,null,null,null,null,null,null,""]
[null,null,null,null,null,null,null,null,null,""]
[null,null,null,null,null,null,null,null,null,""]
[null,null,null,null,null,null,null,null,null,""]
[null,null,null,null,null,null,null,null,null,""]
[null,null,null,null,null,null,null,null,null,""]
[null,null,null,null,null,null,null,null,null,""]
[null,null,null,null,null,null,null,null,null,""]
[null,null,null,null,null,null,null,null,null,""]
[null,null,null,null,null,null,null,null,null,""]
[null,null,null,null,null,null,null,null,null,""]
[null,null,null,null,null,null,null,null,null,""]
[null,null,null,null,null,null,null,null,null,""]
[null,null,null,null,null,null,null,null,null,""]
[null,null,null,null,null,null,null,null,null,""]
[null,null,null,null,null,null,null,null,null,""]
[null,null,null,null,null,null,null,null,null,""]
[null,null,null,null,null,null,null,null,null,""]
[null,null,null,null,null,null,null,null,null,""]
[null,null,null,null,null,null,null,null,null,""]
[null,null,null,null,null,null,null,null,null,""]
[null,null,null,null,null,null,null,null,null,""]
[null,null,null,null,null,null,null,null,null,""]
[null,null,null,null,null,null,null,null,null,""]
[null,null,null,null,null,null,null,null,null,""]
[null,null,null,null,null,null,null,null,null,""]
[null,null,null,null,null,null,null,null,null,""]
[null,null,null,null,null,null,null,null,null,""]
[null,null,null,null,null,null,null,null,null,""]
[null,null,null,null,null,null,null,null,null,""]
[null,null,null,null,null,null,null,null,null,""]
[null,null,null,null,null,null,null,null,null,""]
[null,null,null,null,null,null,null,null,null,""]
[null,null,null,null,null,null,null,null,null,""]
[null,null,null,null,null,null,null,null,null,""]
[null,null,null,null,null,null,null,null,null,""]
[null,null,null,null,null,null,null,null,null,""]
[null,null,null,null,null,null,null,null,null,""]
[null,null,null,null,null,null,null,null,null,""]
[null,null,null,null,null,null,null,null,null,""]
[null,null,null,null,null,null,null,null,null,""]
[null,null,null,null,null,null,null,null,null,""]
[null,null,null,null,null,null,null,null,null,""]
[null,null,null,null,null,null,null,null,null,""]
[null,null,null,null,null,null,null,null,null,""]
[null,null,null,null,null,null,null,null,null,""]
[null,null,null,null,null,null,null,null,null,""]
[null,null,null,null,null,null,null,null,null,""]
[null,null,null,null,null,null,null,null,null,""]
[null,null,null,null,null,null,null,null,null,{"$f":"IF(AND(H709<>\"\",I709<>\"\"),H709*I709,\"\")","v":""}]
[null,null,null,null,null,null,null,null,null,""]
[null,null,null,null,null,null,null,null,null,""]
[null,null,null,null,null,null,null,null,null,""]
[null,null,null,null,null,null,null,null,null,""]
[null,null,null,null,null,null,null,null,null,""]
[null,null,null,null,null,null,null,null,null,""]
[null,null,null,null,null,null,null,null,null,""]
[null,null,null,null,null,null,null,null,null,""]
[null,null,null,null,null,null,null,null,null,""]
[null,null,null,null,null,null,null,null,null,""]
[null,null,null,null,null,null,null,null,null,""]
[null,null,null,null,null,null,null,null,null,""]
[null,null,null,null,null,null,null,null,null,""]
[null,null,null,null,null,null,null,null,null,""]
[null,null,null,null,null,null,null,null,null,""]
[null,null,null,null,null,null,null,null,null,""]
[null,null,null,null,null,null,null,null,null,""]
[null,null,null,null,null,null,null,null,null,""]
[null,null,null,null,null,null,null,null,null,""]
[null,null,null,null,null,null,null,null,null,""]
[null,null,null,null,null,null,null,null,null,""]
[null,null,null,null,null,null,null,null,null,""]
[null,null,null,null,null,null,null,null,null,""]
[null,null,null,null,null,null,null,null,null,""]
[null,null,null,null,null,null,null,null,null,""]
[null,null,null,null,null,null,null,null,null,""]
[null,null,null,null,null,null,null,null,null,""]
[null,null,null,null,null,null,null,null,null,""]
[null,null,null,null,null,null,null,null,null,""]
[null,null,null,null,null,null,null,null,null,""]
[null,null,null,null,null,null,null,null,null,""]
[null,null,null,null,null,null,null,null,null,""]
[null,null,null,null,null,null,null,null,null,""]
[null,null,null,null,null,null,null,null,null,""]
[null,null,null,null,null,null,null,null,null,""]
[null,null,null,null,null,null,null,null,null,""]
[null,null,null,null,null,null,null,null,null,""]
[null,null,null,null,null,null,null,null,null,""]
[null,null,null,null,null,null,null,null,null,""]
[null,null,null,null,null,null,null,null,null,""]
[null,null,null,null,null,null,null,null,null,""]
[null,null,null,null,null,null,null,null,null,""]
[null,null,null,null,null,null,null,null,null,""]
[null,null,null,null,null,null,null,null,null,""]
[null,null,null,null,null,null,null,null,null,""]
[null,null,null,null,null,null,null,null,null,""]
[null,null,null,null,null,null,null,null,null,""]
[null,null,null,null,null,null,null,null,null,""]
[null,null,null,null,null,null,null,null,null,""]
[null,null,null,null,null,null,null,null,null,""]
[null,null,null,null,null,null,null,null,null,""]
[null,null,null,null,null,null,null,null,null,""]
[null,null,null,null,null,null,null,null,null,""]
[null,null,null,null,null,null,null,null,null,""]
[null,null,null,null,null,null,null,null,null,""]
[null,null,null,null,null,null,null,null,null,""]
[null,null,null,null,null,null,null,null,null,""]
[null,null,null,null,null,null,null,null,null,""]
[null,null,null,null,null,null,null,null,null,""]
[null,null,null,null,null,null,null,null,null,""]
[null,null,null,null,null,null,null,null,null,""]
[null,null,null,null,null,null,null,null,null,""]
[null,null,null,null,null,null,null,null,null,""]
[null,null,null,null,null,null,null,null,null,{"$f":"IF(AND(H773<>\"\",I773<>\"\"),H773*I773,\"\")","v":""}]
[null,null,null,null,null,null,null,null,null,""]
[null,null,null,null,null,null,null,null,null,""]
[null,null,null,null,null,null,null,null,null,""]
[null,null,null,null,null,null,null,null,null,""]
[null,null,null,null,null,null,null,null,null,""]
[null,null,null,null,null,null,null,null,null,""]
[null,null,null,null,null,null,null,null,null,""]
[null,null,null,null,null,null,null,null,null,""]
[null,null,null,null,null,null,null,null,null,""]
[null,null,null,null,null,null,null,null,null,""]
[null,null,null,null,null,null,null,null,null,""]
[null,null,null,null,null,null,null,null,null,""]
[null,null,null,null,null,null,null,null,null,""]
[null,null,null,null,null,null,null,null,null,""]
[null,null,null,null,null,null,null,null,null,""]
[null,null,null,null,null,null,null,null,null,""]
[null,null,null,null,null,null,null,null,null,""]
[null,null,null,null,null,null,null,null,null,""]
[null,null,null,null,null,null,null,null,null,""]
[null,null,null,null,null,null,null,null,null,""]
[null,null,null,null,null,null,null,null,null,""]
[null,null,null,null,null,null,null,null,null,""]
[null,null,null,null,null,null,null,null,null,""]
[null,null,null,null,null,null,null,null,null,""]
[null,null,null,null,null,null,null,null,null,""]
[null,null,null,null,null,null,null,null,null,""]
[null,null,null,null,null,null,null,null,null,""]
[null,null,null,null,null,null,null,null,null,""]
[null,null,null,null,null,null,null,null,null,""]
[null,null,null,null,null,null,null,null,null,""]
[null,null,null,null,null,null,null,null,null,""]
[null,null,null,null,null,null,null,null,null,""]
[null,null,null,null,null,null,null,null,null,""]
[null,null,null,null,null,null,null,null,null,""]
[null,null,null,null,null,null,null,null,null,""]
[null,null,null,null,null,null,null,null,null,""]
[null,null,null,null,null,null,null,null,null,""]
[null,null,null,null,null,null,null,null,null,""]
[null,null,null,null,null,null,null,null,null,""]
[null,null,null,null,null,null,null,null,null,""]
[null,null,null,null,null,null,null,null,null,""]
[null,null,null,null,null,null,null,null,null,""]
[null,null,null,null,null,null,null,null,null,""]
[null,null,null,null,null,null,null,null,null,""]
[null,null,null,null,null,null,null,null,null,""]
[null,null,null,null,null,null,null,null,null,""]
[null,null,null,null,null,null,null,null,null,""]
[null,null,null,null,null,null,null,null,null,""]
[null,null,null,null,null,null,null,null,null,""]
[null,null,null,null,null,null,null,null,null,""]
[null,null,null,null,null,null,null,null,null,""]
[null,null,null,null,null,null,null,null,null,""]
[null,null,null,null,null,null,null,null,null,""]
[null,null,null,null,null,null,null,null,null,""]
[null,null,null,null,null,null,null,null,null,""]
[null,null,null,null,null,null,null,null,null,""]
[null,null,null,null,null,null,null,null,null,""]
[null,null,null,null,null,null,null,null,null,""]
[null,null,null,null,null,null,null,null,null,""]
[null,null,null,null,null,null,null,null,null,""]
[null,null,null,null,null,null,null,null,null,""]
[null,null,null,null,null,null,null,null,null,""]
[null,null,null,null,null,null,null,null,null,""]
[null,null,null,null,null,null,null,null,null,{"$f":"IF(AND(H837<>\"\",I837<>\"\"),H837*I837,\"\")","v":""}]
[null,null,null,null,null,null,null,null,null,""]
[null,null,null,null,null,null,null,null,null,""]
[null,null,null,null,null,null,null,null,null,""]
[null,null,null,null,null,null,null,null,null,""]
[null,null,null,null,null,null,null,null,null,""]
[null,null,null,null,null,null,null,null,null,""]
[null,null,null,null,null,null,null,null,null,""]
[null,null,null,null,null,null,null,null,null,""]
[null,null,null,null,null,null,null,null,null,""]
[null,null,null,null,null,null,null,null,null,""]
[null,null,null,null,null,null,null,null,null,""]
[null,null,null,null,null,null,null,null,null,""]
[null,null,null,null,null,null,null,null,null,""]
[null,null,null,null,null,null,null,null,null,""]
[null,null,null,null,null,null,null,null,null,""]
[null,null,null,null,null,null,null,null,null,""]
[null,null,null,null,null,null,null,null,null,""]
[null,null,null,null,null,null,null,null,null,""]
[null,null,null,null,null,null,null,null,null,""]
[null,null,null,null,null,null,null,null,null,""]
[null,null,null,null,null,null,null,null,null,""]
[null,null,null,null,null,null,null,null,null,""]
[null,null,null,null,null,null,null,null,null,""]
[null,null,null,null,null,null,null,null,null,""]
[null,null,null,null,null,null,null,null,null,""]
[null,null,null,null,null,null,null,null,null,""]
[null,null,null,null,null,null,null,null,null,""]
[null,null,null,null,null,null,null,null,null,""]
[null,null,null,null,null,null,null,null,null,""]
[null,null,null,null,null,null,null,null,null,""]
[null,null,null,null,null,null,null,null,null,""]
[null,null,null,null,null,null,null,null,null,""]
[null,null,null,null,null,null,null,null,null,""]
[null,null,null,null,null,null,null,null,null,""]
[null,null,null,null,null,null,null,null,null,""]
[null,null,null,null,null,null,null,null,null,""]
[null,null,null,null,null,null,null,null,null,""]
[null,null,null,null,null,null,null,null,null,""]
[null,null,null,null,null,null,null,null,null,""]
[null,null,null,null,null,null,null,null,null,""]
[null,null,null,null,null,null,null,null,null,""]
[null,null,null,null,null,null,null,null,null,""]
[null,null,null,null,null,null,null,null,null,""]
[null,null,null,null,null,null,null,null,null,""]
[null,null,null,null,null,null,null,null,null,""]
[null,null,null,null,null,null,null,null,null,""]
[null,null,null,null,null,null,null,null,null,""]
[null,null,null,null,null,null,null,null,null,""]
[null,null,null,null,null,null,null,null,null,""]
[null,null,null,null,null,null,null,null,null,""]
[null,null,null,null,null,null,null,null,null,""]
[null,null,null,null,null,null,null,null,null,""]
[null,null,null,null,null,null,null,null,null,""]
[null,null,null,null,null,null,null,null,null,""]
[null,null,null,null,null,null,null,null,null,""]
[null,null,null,null,null,null,null,null,null,""]
[null,null,null,null,null,null,null,null,null,""]
[null,null,null,null,null,null,null,null,null,""]
[null,null,null,null,null,null,null,null,null,""]
[null,null,null,null,null,null,null,null,null,""]
[null,null,null,null,null,null,null,null,null,""]
[null,null,null,null,null,null,null,null,null,""]
[null,null,null,null,null,null,null,null,null,""]
[null,null,null,null,null,null,null,null,null,{"$f":"IF(AND(H901<>\"\",I901<>\"\"),H901*I901,\"\")","v":""}]
[null,null,null,null,null,null,null,null,null,""]
[null,null,null,null,null,null,null,null,null,""]
[null,null,null,null,null,null,null,null,null,""]
[null,null,null,null,null,null,null,null,null,""]
[null,null,null,null,null,null,null,null,null,""]
[null,null,null,null,null,null,null,null,null,""]
[null,null,null,null,null,null,null,null,null,""]
[null,null,null,null,null,null,null,null,null,""]
[null,null,null,null,null,null,null,null,null,""]
[null,null,null,null,null,null,null,null,null,""]
[null,null,null,null,null,null,null,null,null,""]
[null,null,null,null,null,null,null,null,null,""]
[null,null,null,null,null,null,null,null,null,""]
[null,null,null,null,null,null,null,null,null,""]
[null,null,null,null,null,null,null,null,null,""]
[null,null,null,null,null,null,null,null,null,""]
[null,null,null,null,null,null,null,null,null,""]
[null,null,null,null,null,null,null,null,null,""]
[null,null,null,null,null,null,null,null,null,""]
[null,null,null,null,null,null,null,null,null,""]
[null,null,null,null,null,null,null,null,null,""]
[null,null,null,null,null,null,null,null,null,""]
[null,null,null,null,null,null,null,null,null,""]
[null,null,null,null,null,null,null,null,null,""]
[null,null,null,null,null,null,null,null,null,""]
[null,null,null,null,null,null,null,null,null,""]
[null,null,null,null,null,null,null,null,null,""]
[null,null,null,null,null,null,null,null,null,""]
[null,null,null,null,null,null,null,null,null,""]
[null,null,null,null,null,null,null,null,null,""]
[null,null,null,null,null,null,null,null,null,""]
[null,null,null,null,null,null,null,null,null,""]
[null,null,null,null,null,null,null,null,null,""]
[null,null,null,null,null,null,null,null,null,""]
[null,null,null,null,null,null,null,null,null,""]
[null,null,null,null,null,null,null,null,null,""]
[null,null,null,null,null,null,null,null,null,""]
[null,null,null,null,null,null,null,null,null,""]
[null,null,null,null,null,null,null,null,null,""]
[null,null,null,null,null,null,null,null,null,""]
[null,null,null,null,null,null,null,null,null,""]
[null,null,null,null,null,null,null,null,null,""]
[null,null,null,null,null,null,null,null,null,""]
[null,null,null,null,null,null,null,null,null,""]
[null,null,null,null,null,null,null,null,null,""]
[null,null,null,null,null,null,null,null,null,""]
[null,null,null,null,null,null,null,null,null,""]
[null,null,null,null,null,null,null,null,null,""]
[null,null,null,null,null,null,null,null,null,""]
[null,null,null,null,null,null,null,null,null,""]
[null,null,null,null,null,null,null,null,null,""]
[null,null,null,null,null,null,null,null,null,""]
[null,null,null,null,null,null,null,null,null,""]
[null,null,null,null,null,null,null,null,null,""]
[null,null,null,null,null,null,null,null,null,""]
[null,null,null,null,null,null,null,null,null,""]
[null,null,null,null,null,null,null,null,null,""]
[null,null,null,null,null,null,null,null,null,""]
[null,null,null,null,null,null,null,null,null,""]
[null,null,null,null,null,null,null,null,null,""]
[null,null,null,null,null,null,null,null,null,""]
[null,null,null,null,null,null,null,null,null,""]
[null,null,null,null,null,null,null,null,null,""]
[null,null,null,null,null,null,null,null,null,{"$f":"IF(AND(H965<>\"\",I965<>\"\"),H965*I965,\"\")","v":""}]
[null,null,null,null,null,null,null,null,null,""]
[null,null,null,null,null,null,null,null,null,""]
[null,null,null,null,null,null,null,null,null,""]
[null,null,null,null,null,null,null,null,null,""]
[null,null,null,null,null,null,null,null,null,""]
[null,null,null,null,null,null,null,null,null,""]
[null,null,null,null,null,null,null,null,null,""]
[null,null,null,null,null,null,null,null,null,""]
[null,null,null,null,null,null,null,null,null,""]
[null,null,null,null,null,null,null,null,null,""]
[null,null,null,null,null,null,null,null,null,""]
[null,null,null,null,null,null,null,null,null,""]
[null,null,null,null,null,null,null,null,null,""]
[null,null,null,null,null,null,null,null,null,""]
[null,null,null,null,null,null,null,null,null,""]
[null,null,null,null,null,null,null,null,null,""]
[null,null,null,null,null,null,null,null,null,""]
[null,null,null,null,null,null,null,null,null,""]
[null,null,null,null,null,null,null,null,null,""]
[null,null,null,null,null,null,null,null,null,""]
[null,null,null,null,null,null,null,null,null,""]
[null,null,null,null,null,null,null,null,null,""]
[null,null,null,null,null,null,null,null,null,""]
[null,null,null,null,null,null,null,null,null,""]
[null,null,null,null,null,null,null,null,null,""]
[null,null,null,null,null,null,null,null,null,""]
[null,null,null,null,null,null,null,null,null,""]
[null,null,null,null,null,null,null,null,null,""]
[null,null,null,null,null,null,null,null,null,""]
[null,null,null,null,null,null,null,null,null,""]
[null,null,null,null,null,null,null,null,null,""]
[null,null,null,null,null,null,null,null,null,""]
[null,null,null,null,null,null,null,null,null,""]
[null,null,null,null,null,null,null,null,null,""]
[null,null,null,null,null,null,null,null,null,""]
[null,null,null,null,null,null,null,null,null,""]
[null,null,null,null,null,null,null,null,null,{"$f":"IF(AND(H1002<>\"\",I1002<>\"\"),H1002*I1002,\"\")","v":""}]
[null,null,null,null,null,null,null,null,null,""]
[10000]

{"sheet":"Totaalblad","index":3,"n_rows":43,"n_cols":14,"rows_kept":43,"cut":false,"hidden":false,"merged":[[26,3,26,8],[16,3,16,4],[0,11,0,12],[0,9,0,10],[5,1,5,2],[9,3,9,8],[4,10,4,14],[5,13,5,14],[6,1,6,2],[5,3,5,8],[6,3,6,8],[9,1,9,2],[8,4,8,8],[7,1,7,2],[8,1,8,2],[7,3,7,8],[10,3,10,8],[16,1,16,2],[10,1,10,2],[26,10,35,14],[25,10,25,14],[15,5,15,7],[11,1,11,2],[11,3,11,8],[23,1,23,16],[22,1,22,4],[20,1,21,14],[17,5,17,7],[16,5,16,7],[18,1,18,10],[27,1,34,8],[35,3,35,8]]}
[null,"Financiële productieverantwoording Jeugdwet op totaalniveau",null,null,null,null,null,null,null,2022]
[]
[null,"Zorgaanbieder "]
[]
[null,"Zorgaanbieder",null,null,null,null,null,null,null,null,"Versiebeheer"]
[null,"Naam",null," ",null,null,null,null,null,null,"Versiedatum",null,null,{"$f":"MAX(Versiebeheer!B11:B21)","v":"2022-10-03"}]
[null,"Plaats"]
[null,"KvK-nummer"]
[null,"Contactpersoon"]
[null,"Telefoon"]
[null,"E-mail"]
[null,"AGB-code"]
[]
[]
[]
[null,"Financieringsstroom",null,null,null,{"$f":"\"Gerealiseerde productie \"&J1","v":"Gerealiseerde productie 2022"}]
[null,"Jeugdwet",null,null,null,{"$f":"SUM(begin:einde!R2)","v":0}]
[null,"TOTAAL gerealiseerde productie ",null,null,null,{"$f":"F17","v":0}]
[]
[null,{"$f":"\"Door ondertekening van het formulier 'Financiële productieverantwoording \"&J1&\"':\"","v":"Door ondertekening van het formulier 'Financiële productieverantwoording 2022':"}]
[null,{"$f":"\"Verklaart de bestuurder van de zorgaanbieder dat de financiële productieverantwoording Jeugdwet \"&J1&\" naar waarheid en in overeenstemming met het normenkader (zie paragraaf Normen- en\"&\" toetsingskader, Algemeen Accountantsprotocol 2022) is verantwoord.\"","v":"Verklaart de bestuurder van de zorgaanbieder dat de financiële productieverantwoording Jeugdwet 2022 naar waarheid en in overeenstemming met het normenkader (zie paragraaf Normen- en toetsingskader, Algemeen Accountantsprotocol 2022) is verantwoord."}]
[]
[]
[]
[]
[null,"Zorgaanbieder",null,null,null,null,null,null,null,null,"Waarmerking Accountant voor identificatiedoeleinden:"]
[null,"Naam ondertekenaar:",null,null,null,null,null,null,null,null,"behorend bij verklaring afgegeven d.d.:"]
[null,"Handtekening:"]
[]
[]
[]
[]
[]
[]
[]
[null,"Datum:"]
[]
[]
[]
[]
[]
[]
[null,"  "]

{"sheet":"Overzicht gemeenten","index":4,"n_rows":51,"n_cols":14,"rows_kept":51,"cut":false,"hidden":false,"merged":[[28,2,28,9],[17,2,17,9],[19,2,19,9],[20,2,20,9],[23,2,23,9],[24,2,24,9],[21,2,21,9],[22,2,22,9],[18,2,18,9],[9,2,9,9],[41,10,50,14],[32,2,32,9],[40,10,40,14],[30,2,30,9],[10,2,10,9],[25,2,25,9],[15,2,15,9],[11,2,11,9],[12,2,12,9],[13,2,13,9],[14,2,14,9],[16,2,16,9],[26,2,26,9],[27,2,27,9],[29,2,29,9]]}
[null,"Overzicht gemeenten waarop financiële productieverantwoording Jeugdwet op totaalniveau betrekking heeft"]
[]
[]
[]
[]
[]
[]
[]
[null,0,"Gemeente(n)"]
[null,1,"Asten"]
[null,2,"Bergeijk"]
[null,3,"Best"]
[null,4,"Bladel"]
[null,5,"Cranendonck"]
[null,6,"Deurne"]
[null,7,"Eersel"]
[null,8,"Eindhoven"]
[null,9,"Geldrop-Mierlo"]
[null,10,"Gemert-Bakel"]
[null,11,"Heeze-Leende"]
[null,12,"Helmond"]
[null,13,"Laarbeek"]
[null,14,"Nuenen"]
[null,15,"Oirschot"]
[null,16,"Reusel-De Mierden"]
[null,17,"Someren"]
[null,18,"Son en Breugel"]
[null,19,"Valkenswaard"]
[null,20,"Veldhoven"]
[null,21,"Waalre"]
[null,22]
[null,500,null,null,null,null,null,null,null,null,null,null,null,"hide row"]
[null,null,null,null,null,null,null,null,null,null,null,null,null,"hide row"]
[]
[]
[]
[]
[]
[]
[]
[null,"Zorgaanbieder",null,null,null,null,null,null,null,null,"Waarmerking Accountant voor identificatiedoeleinden:"]
[null,{"$f":"CONCATENATE(\"Naam: \"&Totaalblad!$D$27)","v":"Naam: "},null,null,null,null,null,null,null,null,"behorend bij verklaring afgegeven d.d.:"]
[null,"Handtekening:"]
[]
[]
[]
[]
[]
[]
[]
[null,{"$f":"CONCATENATE(\"Datum: \"&Totaalblad!$D$36)","v":"Datum: "}]

{"sheet":"Versiebeheer","index":5,"n_rows":11,"n_cols":6,"rows_kept":11,"cut":false,"hidden":false,"merged":[]}
[]
[null,"Versiebeheer"]
[]
[null,{"$f":"\"In onderstaande tabel ziet u welke mutaties er zijn ten opzichte van eerdere versies van het formulier Financiële productieverantwoording \"&Totaalblad!J1","v":"In onderstaande tabel ziet u welke mutaties er zijn ten opzichte van eerdere versies van het formulier Financiële productieverantwoording 2022"}]
[null,"Hiermee kunt u bepalen of de gedane aanpassingen voor u van belang zijn. "]
[]
[null,"De eerste versie van het formulier is van:",null,null,"2022-10-03"]
[null,"De huidige versie van het formulier is van:",null,null,{"$f":"MAX(B11:B21)","v":"2022-10-03"}]
[]
[null,"Versie","Werkblad","Regel(s)","Foutmelding","Aanpassing"]
[null,"2022-10-03",null,null,null,"Uitleverversie 1.0"]

{"sheet":"begin","index":6,"n_rows":0,"n_cols":0,"rows_kept":0,"cut":false,"hidden":true,"merged":[]}

{"sheet":"Gemeente x","index":7,"n_rows":255,"n_cols":18,"rows_kept":255,"cut":false,"hidden":true,"merged":[[102,2,102,5],[238,2,246,10],[164,2,164,5],[165,2,165,5],[101,2,101,5],[109,2,109,5],[118,2,118,5],[125,2,125,5],[148,2,148,5],[149,2,149,5],[124,2,124,5],[108,2,108,5],[117,2,117,5],[141,2,141,5],[157,2,157,5],[222,2,222,9],[166,2,166,5],[172,2,172,5],[189,2,189,5],[190,2,190,5],[181,2,181,5],[227,2,235,10],[237,1,237,10],[205,2,205,5],[30,2,30,5],[36,2,36,5],[37,2,37,5],[76,2,76,5],[52,2,52,5],[45,2,45,5],[46,2,46,5],[85,2,85,5],[93,2,93,5],[77,2,77,5],[78,2,78,5],[62,2,62,5],[68,2,68,5],[69,2,69,5],[70,2,70,5],[61,2,61,5],[92,2,92,5],[183,2,183,5],[191,2,191,5],[238,1,246,1],[156,2,156,5],[150,2,150,5],[197,2,197,5],[198,2,198,5],[199,2,199,5],[207,2,207,5],[173,2,173,5],[174,2,174,5],[206,2,206,5],[213,2,213,5],[214,2,214,5],[215,2,215,5],[20,2,20,5],[21,2,21,5],[22,2,22,5],[28,2,28,5],[29,2,29,5],[8,3,8,6],[9,3,9,6],[10,3,10,6],[254,1,254,7],[142,2,142,5],[126,2,126,5],[134,2,134,5],[226,1,226,9],[227,1,235,1],[249,9,249,10],[133,2,133,5],[140,2,140,5],[180,2,180,5],[248,9,248,10],[182,2,182,5],[158,2,158,5],[250,9,250,10],[223,2,223,9],[224,2,224,9],[0,8,1,10],[94,2,94,5],[11,3,11,6],[132,2,132,5],[86,2,86,5],[18,3,18,5],[7,8,7,10],[100,2,100,5],[116,2,116,5],[8,1,8,2],[8,8,8,9],[9,8,9,9],[10,8,10,9],[11,8,11,9],[84,2,84,5],[38,2,38,5],[44,2,44,5],[53,2,53,5],[54,2,54,5],[60,2,60,5],[12,8,12,9],[110,2,110,5],[13,8,13,9],[14,8,14,9]]}
[null,"Financiële productieverantwoording Jeugdwet",null,null,null,null,null,null,{"$f":"\"Gemeente \"&D9","v":"Gemeente "},null,null,null,null,null,null,null,"wmo"]
[null,null,null,null,null,null,null,null,null,null,null,null,null,null,null,null,"jeugd",{"$f":"K223","v":0}]
[]
[null,"In dit onderdeel verantwoordt de zorgaanbieder de geleverde prestaties waarover de zorgaanbieder verantwoording af dient te leggen bij de gemeente: "]
[null,"geleverde prestaties met als grondslag de Jeugdwet. Alle aantallen worden op basis van de werkelijke realisatie ingevuld. "]
[]
[]
[null,"Gemeente ",null,null,null,null,null,null,"Zorgaanbieder"]
[null,"Naam",null,null,null,null,null,null,"Naam",null,{"$f":"Totaalblad!D6","v":" "}]
[null,"Contactpersoon",null,null,null,null,null,null,"Plaats",null,{"$f":"Totaalblad!D7","v":0}]
[null,"Telefoon",null,null,null,null,null,null,"KvK-nummer",null,{"$f":"Totaalblad!D8","v":0}]
[null,"E-mail",null,null,null,null,null,null,"Contactpersoon Jeugdwet",null,{"$f":"IF(Totaalblad!E9=\"\",\"\",Totaalblad!E9)","v":""}]
[null,null,null,null,null,null,null,null,"Telefoon",null,{"$f":"IF(Totaalblad!D10=\"\",\"\",Totaalblad!D10)","v":""}]
[null,null,null,null,null,null,null,null,"E-mail",null,{"$f":"IF(Totaalblad!D11=\"\",\"\",Totaalblad!D11)","v":""}]
[null,null,null,null,null,null,null,null,"AGB-code",null,{"$f":"Totaalblad!D12","v":0}]
[]
[]
[null,"Geleverde prestaties Jeugdwet"]
[null,null,"Inkoop order nr: "]
[]
[null,31,"(2015) Zonder verblijf: uitgevoerd door wijk- of buurtteam",null,null,null,"Code","Eenheid","Aantal (Q)","Prijs in € (P)",{"$f":"\"Realisatie \"&Totaalblad!$J$1&\" in €\"","v":"Realisatie 2022 in €"}]
[null,3100,null,null,null,null,null,null,null,null,{"$f":"I22*J22","v":0}]
[null,3101,null,null,null,null,null,null,null,null,{"$f":"I23*J23","v":0}]
[null,3199]
[null,null,"Totaal Zonder verblijf: uitgevoerd door wijk- of buurtteam",null,null,null,null,null,null,null,{"$f":"SUM(K22:K24)","v":0}]
[]
[]
[]
[null,32,"(2015) Zonder verblijf: ambulante jeugdhulp op locatie van de aanbieder",null,null,null,"Code","Eenheid","Aantal (Q)","Prijs in € (P)",{"$f":"\"Realisatie \"&Totaalblad!$J$1&\" in €\"","v":"Realisatie 2022 in €"}]
[null,3200,null,null,null,null,null,null,null,null,{"$f":"I30*J30","v":0}]
[null,3201,null,null,null,null,null,null,null,null,{"$f":"I31*J31","v":0}]
[null,3299]
[null,null,"Totaal Zonder verblijf: ambulante jeugdhulp op locatie van de aanbieder",null,null,null,null,null,null,null,{"$f":"SUM(K30:K32)","v":0}]
[]
[]
[]
[null,33,"(2015) Zonder verblijf: daghulp op locatie van de aanbieder",null,null,null,"Code","Eenheid","Aantal (Q)","Prijs in € (P)",{"$f":"\"Realisatie \"&Totaalblad!$J$1&\" in €\"","v":"Realisatie 2022 in €"}]
[null,3300,null,null,null,null,null,null,null,null,{"$f":"I38*J38","v":0}]
[null,3301,null,null,null,null,null,null,null,null,{"$f":"I39*J39","v":0}]
[null,3399]
[null,null,"Totaal Zonder verblijf: daghulp op locatie van de aanbieder",null,null,null,null,null,null,null,{"$f":"SUM(K38:K40)","v":0}]
[]
[]
[]
[null,34,"(2015) Zonder verblijf: jeugdhulp in het netwerk van de jeugdige",null,null,null,"Code","Eenheid","Aantal (Q)","Prijs in € (P)",{"$f":"\"Realisatie \"&Totaalblad!$J$1&\" in €\"","v":"Realisatie 2022 in €"}]
[null,3400,null,null,null,null,null,null,null,null,{"$f":"I46*J46","v":0}]
[null,3401,null,null,null,null,null,null,null,null,{"$f":"I47*J47","v":0}]
[null,3499]
[null,null,"Totaal Zonder verblijf: jeugdhulp in het netwerk van de jeugdige",null,null,null,null,null,null,null,{"$f":"SUM(K46:K48)","v":0}]
[]
[]
[]
[null,35,"(2015) Met verblijf: pleegzorg",null,null,null,"Code","Eenheid","Aantal (Q)","Prijs in € (P)",{"$f":"\"Realisatie \"&Totaalblad!$J$1&\" in €\"","v":"Realisatie 2022 in €"}]
[null,3500,null,null,null,null,null,null,null,null,{"$f":"I54*J54","v":0}]
[null,3501,null,null,null,null,null,null,null,null,{"$f":"I55*J55","v":0}]
[null,3599]
[null,null,"Totaal Met verblijf: pleegzorg",null,null,null,null,null,null,null,{"$f":"SUM(K54:K56)","v":0}]
[]
[]
[]
[null,36,"(2015) Met verblijf: gezinsgericht",null,null,null,"Code","Eenheid","Aantal (Q)","Prijs in € (P)",{"$f":"\"Realisatie \"&Totaalblad!$J$1&\" in €\"","v":"Realisatie 2022 in €"}]
[null,3600,null,null,null,null,null,null,null,null,{"$f":"I62*J62","v":0}]
[null,3601,null,null,null,null,null,null,null,null,{"$f":"I63*J63","v":0}]
[null,3699]
[null,null,"Totaal Met verblijf: gezinsgericht",null,null,null,null,null,null,null,{"$f":"SUM(K62:K64)","v":0}]
[]
[]
[]
[null,37,"(2015) Met verblijf: gesloten plaatsing",null,null,null,"Code","Eenheid","Aantal (Q)","Prijs in € (P)",{"$f":"\"Realisatie \"&Totaalblad!$J$1&\" in €\"","v":"Realisatie 2022 in €"}]
[null,3700,null,null,null,null,null,null,null,null,{"$f":"I70*J70","v":0}]
[null,3701,null,null,null,null,null,null,null,null,{"$f":"I71*J71","v":0}]
[null,3799]
[null,null,"Totaal Met verblijf: gesloten plaatsing",null,null,null,null,null,null,null,{"$f":"SUM(K70:K72)","v":0}]
[]
[]
[]
[null,38,"(2015) Met verblijf: overig residentieel",null,null,null,"Code","Eenheid","Aantal (Q)","Prijs in € (P)",{"$f":"\"Realisatie \"&Totaalblad!$J$1&\" in €\"","v":"Realisatie 2022 in €"}]
[null,3800,null,null,null,null,null,null,null,null,{"$f":"I78*J78","v":0}]
[null,3801,null,null,null,null,null,null,null,null,{"$f":"I79*J79","v":0}]
[null,3899]
[null,null,"Totaal Met verblijf: overig residentieel",null,null,null,null,null,null,null,{"$f":"SUM(K78:K80)","v":0}]
[]
[]
[]
[null,40,"Persoonlijke verzorging",null,null,null,"Code","Eenheid","Aantal (Q)","Prijs in € (P)",{"$f":"\"Realisatie \"&Totaalblad!$J$1&\" in €\"","v":"Realisatie 2022 in €"}]
[null,4000,null,null,null,null,null,null,null,null,{"$f":"I86*J86","v":0}]
[null,4001,null,null,null,null,null,null,null,null,{"$f":"I87*J87","v":0}]
[null,4099]
[null,null,"Totaal Persoonlijke verzorging",null,null,null,null,null,null,null,{"$f":"SUM(K86:K88)","v":0}]
[]
[]
[]
[null,41,"Dagbehandeling",null,null,null,"Code","Eenheid","Aantal (Q)","Prijs in € (P)",{"$f":"\"Realisatie \"&Totaalblad!$J$1&\" in €\"","v":"Realisatie 2022 in €"}]
[null,4100,null,null,null,null,null,null,null,null,{"$f":"I94*J94","v":0}]
[null,4101,null,null,null,null,null,null,null,null,{"$f":"I95*J95","v":0}]
[null,4199]
[null,null,"Totaal Dagbehandeling",null,null,null,null,null,null,null,{"$f":"SUM(K94:K96)","v":0}]
[]
[]
[]
[null,42,"Vervoersdiensten",null,null,null,"Code","Eenheid","Aantal (Q)","Prijs in € (P)",{"$f":"\"Realisatie \"&Totaalblad!$J$1&\" in €\"","v":"Realisatie 2022 in €"}]
[null,4200,null,null,null,null,null,null,null,null,{"$f":"I102*J102","v":0}]
[null,4201,null,null,null,null,null,null,null,null,{"$f":"I103*J103","v":0}]
[null,4299]
[null,null,"Totaal Vervoersdiensten",null,null,null,null,null,null,null,{"$f":"SUM(K102:K104)","v":0}]
[]
[]
[]
[null,43,"Jeugdhulp verblijf (incl. behandeling)",null,null,null,"Code","Eenheid","Aantal (Q)","Prijs in € (P)",{"$f":"\"Realisatie \"&Totaalblad!$J$1&\" in €\"","v":"Realisatie 2022 in €"}]
[null,4300,null,null,null,null,null,null,null,null,{"$f":"I110*J110","v":0}]
[null,4301,null,null,null,null,null,null,null,null,{"$f":"I111*J111","v":0}]
[null,4399]
[null,null,"Totaal Jeugdhulp verblijf (incl. behandeling)",null,null,null,null,null,null,null,{"$f":"SUM(K110:K112)","v":0}]
[]
[]
[]
[null,44,"Jeugdhulp verblijf (excl. behandeling)",null,null,null,"Code","Eenheid","Aantal (Q)","Prijs in € (P)",{"$f":"\"Realisatie \"&Totaalblad!$J$1&\" in €\"","v":"Realisatie 2022 in €"}]
[null,4400,null,null,null,null,null,null,null,null,{"$f":"I118*J118","v":0}]
[null,4401,null,null,null,null,null,null,null,null,{"$f":"I119*J119","v":0}]
[null,4499]
[null,null,"Totaal Jeugdhulp verblijf (excl. behandeling)",null,null,null,null,null,null,null,{"$f":"SUM(K118:K120)","v":0}]
[]
[]
[]
[null,45,"Jeugdhulp Ambulant",null,null,null,"Code","Eenheid","Aantal (Q)","Prijs in € (P)",{"$f":"\"Realisatie \"&Totaalblad!$J$1&\" in €\"","v":"Realisatie 2022 in €"}]
[null,4500,null,null,null,null,null,null,null,null,{"$f":"I126*J126","v":0}]
[null,4501,null,null,null,null,null,null,null,null,{"$f":"I127*J127","v":0}]
[null,4599]
[null,null,"Totaal Jeugdhulp Ambulant",null,null,null,null,null,null,null,{"$f":"SUM(K126:K128)","v":0}]
[]
[]
[]
[null,46,"Jeugdhulp Crisis",null,null,null,"Code","Eenheid","Aantal (Q)","Prijs in € (P)",{"$f":"\"Realisatie \"&Totaalblad!$J$1&\" in €\"","v":"Realisatie 2022 in €"}]
[null,4600,null,null,null,null,null,null,null,null,{"$f":"I134*J134","v":0}]
[null,4601,null,null,null,null,null,null,null,null,{"$f":"I135*J135","v":0}]
[null,4699]
[null,null,"Totaal Jeugdhulp Crisis",null,null,null,null,null,null,null,{"$f":"SUM(K134:K136)","v":0}]
[]
[]
[]
[null,47,"Jeugdreclassering",null,null,null,"Code","Eenheid","Aantal (Q)","Prijs in € (P)",{"$f":"\"Realisatie \"&Totaalblad!$J$1&\" in €\"","v":"Realisatie 2022 in €"}]
[null,4700,null,null,null,null,null,null,null,null,{"$f":"I142*J142","v":0}]
[null,4701,null,null,null,null,null,null,null,null,{"$f":"I143*J143","v":0}]
[null,4799]
[null,null,"Totaal Jeugdreclassering",null,null,null,null,null,null,null,{"$f":"SUM(K142:K144)","v":0}]
[]
[]
[]
[null,48,"Jeugdbescherming",null,null,null,"Code","Eenheid","Aantal (Q)","Prijs in € (P)",{"$f":"\"Realisatie \"&Totaalblad!$J$1&\" in €\"","v":"Realisatie 2022 in €"}]
[null,4800,null,null,null,null,null,null,null,null,{"$f":"I150*J150","v":0}]
[null,4801,null,null,null,null,null,null,null,null,{"$f":"I151*J151","v":0}]
[null,4899]
[null,null,"Totaal Jeugdbescherming",null,null,null,null,null,null,null,{"$f":"SUM(K150:K152)","v":0}]
[]
[]
[]
[null,49,"Activiteiten in het preventief justitieel kader",null,null,null,"Code","Eenheid","Aantal (Q)","Prijs in € (P)",{"$f":"\"Realisatie \"&Totaalblad!$J$1&\" in €\"","v":"Realisatie 2022 in €"}]
[null,4900,null,null,null,null,null,null,null,null,{"$f":"I158*J158","v":0}]
[null,4901,null,null,null,null,null,null,null,null,{"$f":"I159*J159","v":0}]
[null,4999]
[null,null,"Totaal Activiteiten in het preventief justitieel kader",null,null,null,null,null,null,null,{"$f":"SUM(K158:K160)","v":0}]
[]
[]
[]
[null,50,"Maatwerkarrangementen",null,null,null,"Code","Eenheid","Aantal (Q)","Prijs in € (P)",{"$f":"\"Realisatie \"&Totaalblad!$J$1&\" in €\"","v":"Realisatie 2022 in €"}]
[null,5000,null,null,null,null,null,null,null,null,{"$f":"I166*J166","v":0}]
[null,5001,null,null,null,null,null,null,null,null,{"$f":"I167*J167","v":0}]
[null,5099]
[null,null,"Totaal Maatwerkarrangementen",null,null,null,null,null,null,null,{"$f":"SUM(K166:K168)","v":0}]
[]
[]
[]
[null,51,"Generalistische basis-ggz",null,null,null,"Code","Eenheid","Aantal (Q)","Prijs in € (P)",{"$f":"\"Realisatie \"&Totaalblad!$J$1&\" in €\"","v":"Realisatie 2022 in €"}]
[null,5100,null,null,null,null,null,null,null,null,{"$f":"I174*J174","v":0}]
[null,5101,null,null,null,null,null,null,null,null,{"$f":"I175*J175","v":0}]
[null,5199]
[null,null,"Totaal Generalistische basis-ggz",null,null,null,null,null,null,null,{"$f":"SUM(K174:K176)","v":0}]
[]
[]
[]
[null,52,"Overige geleverde prestaties of vergoedingen",null,null,null,"Code","Financierings-\nvorm","Aantal (Q)","Prijs in € (P)",{"$f":"\"Realisatie \"&Totaalblad!$J$1&\" in €\"","v":"Realisatie 2022 in €"},null," "]
[null,5200,"Subsidiabele kosten ",null,null,null,null,null,null,null,{"$f":"I182*J182","v":0}]
[null,5201,"Lumpsum ",null,null,null,null,null,null,null,{"$f":"I183*J183","v":0}]
[null,5202,"Correcties",null,null,null,null,null,null,null,{"$f":"I184*J184","v":0}]
[null,5299]
[null,null,"Totaal Overige geleverde prestaties of vergoedingen",null,null,null,null,null,null,null,{"$f":"SUM(K182:K185)","v":0}]
[]
[]
[]
[null,53,"Kindergeneeskunde",null,null,null,"Code","Eenheid","Aantal (Q)","Prijs in € (P)",{"$f":"\"Realisatie \"&Totaalblad!$J$1&\" in €\"","v":"Realisatie 2022 in €"}]
[null,5300,null,null,null,null,null,null,null,null,{"$f":"I191*J191","v":0}]
[null,5301,null,null,null,null,null,null,null,null,{"$f":"I192*J192","v":0}]
[null,5399]
[null,null,"Totaal Kindergeneeskunde",null,null,null,null,null,null,null,{"$f":"SUM(K191:K193)","v":0}]
[]
[]
[]
[null,54,"Jeugd GGZ",null,null,null,"Code","Eenheid","Aantal (Q)","Prijs in € (P)",{"$f":"\"Realisatie \"&Totaalblad!$J$1&\" in €\"","v":"Realisatie 2022 in €"}]
[null,5400,null,null,null,null,null,null,null,null,{"$f":"I199*J199","v":0}]
[null,5401,null,null,null,null,null,null,null,null,{"$f":"I200*J200","v":0}]
[null,5499]
[null,null,"Jeugd GGZ",null,null,null,null,null,null,null,{"$f":"SUM(K199:K201)","v":0}]
[]
[]
[]
[null,55,"Landelijk ingekochte zorg",null,null,null,"Code","Eenheid","Aantal (Q)","Prijs in € (P)",{"$f":"\"Realisatie \"&Totaalblad!$J$1&\" in €\"","v":"Realisatie 2022 in €"}]
[null,5500,null,null,null,null,null,null,null,null,{"$f":"I207*J207","v":0}]
[null,5501,null,null,null,null,null,null,null,null,{"$f":"I208*J208","v":0}]
[null,5599]
[null,null,"Totaal Landelijk ingekochte zorg",null,null,null,null,null,null,null,{"$f":"SUM(K207:K209)","v":0}]
[]
[]
[]
[null,56,"Landelijke transitie arrangementen",null,null,null,"Code","Eenheid","Aantal (Q)","Prijs in € (P)",{"$f":"\"Realisatie \"&Totaalblad!$J$1&\" in €\"","v":"Realisatie 2022 in €"}]
[null,5600,null,null,null,null,null,null,null,null,{"$f":"I215*J215","v":0}]
[null,5601,null,null,null,null,null,null,null,null,{"$f":"I216*J216","v":0}]
[null,5699]
[null,null,"Totaal Landelijk ingekochte zorg",null,null,null,null,null,null,null,{"$f":"SUM(K215:K217)","v":0}]
[]
[]
[]
[null,57,"Financiële realisatie Jeugdwet",null,null,null,null,null,null,null,{"$f":"\"Realisatie \"&Totaalblad!$J$1&\" in €\"","v":"Realisatie 2022 in €"}]
[null,5700,"Gerealiseerde productie Jeugdwet",null,null,null,null,null,null,null,{"$f":"SUM(K25+K33+K41+K49+K57+K65+K73+K81+K89+K97+K105+K113+K121+K129+K137+K145+K153+K161+K169+K177+K186+K194+K202+K210+K218)","v":0}]
[null,{"$f":"B223+1","v":5701},"Afgesproken budget Jeugdwet"]
[null,{"$f":"B224+1","v":5702},"Gerealiseerde omzet Jeugdwet",null,null,null,null,null,null,null,{"$f":"IF(K223>K224,K224,K223)","v":0}]
[]
[null,"Ruimte voor toelichting in verband met ongecorrigeerde afwijkingen en onzekerheden"]
[]
[]
[]
[]
[]
[]
[]
[]
[]
[]
[null,"Ruimte voor algemene toelichting"]
[]
[]
[]
[]
[]
[]
[]
[]
[]
[]
[null,"Zorgaanbieder",null,null,null,null,null,null,null,"Rapport van bevindingen:"]
[null,{"$f":"CONCATENATE(\"Naam: \"&Totaalblad!$D$27)","v":"Naam: "},null,null,null,null,null,null,null,"Ja/Nee"]
[null,"Handtekening:",null,null,null,null,null,null,null,"A.u.b. kiezen wat van toepassing is."]
[]
[]
[]
[null,{"$f":"CONCATENATE(\"Datum: \"&Totaalblad!$D$36)","v":"Datum: "}]

{"sheet":"einde","index":8,"n_rows":0,"n_cols":0,"rows_kept":0,"cut":false,"hidden":true,"merged":[]}

{"sheet":"Categorie","index":9,"n_rows":184,"n_cols":2,"rows_kept":184,"cut":false,"hidden":true,"merged":[]}
["NR","Productcategorie"]
[31,"(2015) Zonder verblijf: uitgevoerd door wijk- of buurtteam"]
[32,"(2015) Zonder verblijf: ambulante jeugdhulp op locatie van de aanbieder"]
[33,"(2015) Zonder verblijf: daghulp op locatie van de aanbieder"]
[34,"(2015) Zonder verblijf: jeugdhulp in het netwerk van de jeugdige"]
[35,"(2015) Met verblijf: pleegzorg"]
[36,"(2015) Met verblijf: gezinsgericht"]
[37,"(2015) Met verblijf: gesloten plaatsing"]
[38,"(2015) Met verblijf: overig residentieel"]
[40,"Persoonlijke verzorging"]
[41,"Dagbehandeling"]
[42,"Vervoersdiensten"]
[43,"Jeugdhulp verblijf (incl. behandeling)"]
[44,"Jeugdhulp verblijf (excl. behandeling)"]
[45,"Jeugdhulp Ambulant"]
[46,"Jeugdhulp Crisis"]
[47,"Jeugdreclassering"]
[48,"Jeugdbescherming"]
[49,"Activiteiten in het preventief justitieel kader"]
[50,"Maatwerkarrangementen"]
[51,"Generalistische basis-ggz"]
[52,"Overige geleverde prestaties of vergoedingen"]
[53,"Kindergeneeskunde"]
[54,"Jeugd GGZ"]
[55,"Landelijk ingekochte zorg"]
[56,"Landelijke Transitie Arrangementen"]
[]
[]
[]
[]
[]
[]
[]
[]
[]
[]
[]
[]
[]
[]
[]
[]
[]
[]
[]
[]
[]
[]
[]
[]
[]
[]
[]
[]
[]
[]
[]
[]
[]
[]
[]
[]
[]
[]
[]
[]
[]
[]
[]
[]
[]
[]
[]
[]
[]
[]
[]
[]
[]
[]
[]
[]
[]
[]
[]
[]
[]
[]
[]
[]
[]
[null,"Totaal Zonder verblijf: uitgevoerd door wijk- of buurtteam"]
[]
[]
[]
[null,"Totaal Zonder verblijf: ambulante jeugdhulp op locatie van de aanbieder"]
[]
[]
[]
[null,"Totaal Zonder verblijf: daghulp op locatie van de aanbieder"]
[]
[]
[]
[null,"Totaal Zonder verblijf: jeugdhulp in het netwerk van de jeugdige"]
[]
[]
[]
[null,"Totaal Met verblijf: pleegzorg"]
[]
[]
[]
[null,"Totaal Met verblijf: gezinsgericht"]
[]
[]
[]
[null,"Totaal Met verblijf: gesloten plaatsing"]
[]
[]
[]
[null,"Totaal Met verblijf: overig residentieel"]
[]
[]
[]
[null,"Totaal Persoonlijke verzorging"]
[]
[]
[]
[null,"Totaal Dagbehandeling"]
[]
[]
[]
[null,"Totaal Vervoersdiensten"]
[]
[]
[]
[null,"Totaal Jeugdhulp verblijf (incl. behandeling)"]
[]
[]
[]
[null,"Totaal Jeugdhulp verblijf (excl. behandeling)"]
[]
[]
[]
[null,"Totaal Jeugdhulp Ambulant"]
[]
[]
[]
[null,"Totaal Jeugdhulp Crisis"]
[]
[]
[]
[null,"Totaal Jeugdreclassering"]
[]
[]
[]
[null,"Totaal Jeugdbescherming"]
[]
[]
[]
[null,"Totaal Activiteiten in het preventief justitieel kader"]
[]
[]
[]
[null,"Totaal Maatwerkarrangementen"]
[]
[]
[]
[null,"Totaal Generalistische basis-ggz"]
[]
[]
[]
[null,"Totaal Overige geleverde prestaties of vergoedingen"]
[]
[]
[]
[null,"Totaal Kindergeneeskunde"]
[]
[]
[]
[null,"Totaal Kindergeneeskunde"]
[]
[]
[]
[null,"Totaal Landelijk ingekochte zorg"]

{"sheet":"Productcodes","index":10,"n_rows":628,"n_cols":3,"rows_kept":628,"cut":false,"hidden":false,"merged":[]}
["IJW 3.1","JZ21 - PRODUCTCODE","CODE"]
["Versie",{"$f":"MAX(Versiebeheer!B11:B21)","v":"2022-10-03"}]
[null,"Betekenis","code"]
[40,"Persoonlijke verzorging"]
[null,"Persoonlijke verzorging specialistisch: outputgericht","40A01"]
[null,"Persoonlijke verzorging regulier: outputgericht","40A02"]
[null,"Persoonlijke verzorging specialistisch: inspanningsgericht","40A03"]
[null,"Persoonlijke verzorging regulier: inspanningsgericht","40A04"]
[null,"Persoonlijke verzorging regulier: outputgericht (licht)","40A05"]
[null,"Persoonlijke verzorging regulier: outputgericht (middel)","40A06"]
[null,"Persoonlijke verzorging regulier: outputgericht (zwaar)","40A07"]
[null,"Persoonlijke verzorging specialistisch: outputgericht (licht)","40A08"]
[null,"Persoonlijke verzorging specialistisch: outputgericht (middel)","40A09"]
[null,"Persoonlijke verzorging specialistisch: outputgericht (zwaar)","40A10"]
[null,"Persoonlijke verzorging regulier: inspanningsgericht (individueel)","40A11"]
[null,"Persoonlijke verzorging regulier: inspanningsgericht (op afstand)","40A12"]
[null,"Persoonlijke verzorging specialistisch: inspanningsgericht (individueel)","40A13"]
[null,"Persoonlijke verzorging specialistisch: inspanningsgericht (op afstand)","40A14"]
[null,"Persoonlijke verzorging laag tarief: inspanningsgericht","40A15"]
[41,"Dagbehandeling"]
[null,"Dagbehandeling regulier: outputgericht","41A01"]
[null,"Dagbehandeling specialistisch: outputgericht","41A02"]
[null,"Dagbehandeling regulier: inspanningsgericht","41A03"]
[null,"Dagbehandeling specialistisch: inspanningsgericht","41A04"]
[null,"Dagbehandeling regulier: outputgericht (licht)","41A05"]
[null,"Dagbehandeling regulier: outputgericht (middel)","41A06"]
[null,"Dagbehandeling regulier: outputgericht (zwaar)","41A07"]
[null,"Dagbehandeling specialistisch: outputgericht (licht)","41A08"]
[null,"Dagbehandeling specialistisch: outputgericht (middel)","41A09"]
[null,"Dagbehandeling specialistisch: outputgericht (zwaar)","41A10"]
[null,"Dagbehandeling regulier: inspanningsgericht (licht)","41A11"]
[null,"Dagbehandeling regulier: inspanningsgericht (middel)","41A12"]
[null,"Dagbehandeling regulier: inspanningsgericht (zwaar)","41A13"]
[null,"Dagbehandeling specialistisch: inspanningsgericht (licht)","41A14"]
[null,"Dagbehandeling specialistisch: inspanningsgericht (middel)","41A15"]
[null,"Dagbehandeling specialistisch: inspanningsgericht (zwaar)","41A16"]
[null,"Dagbesteding: outputgericht","41A17"]
[null,"Dagbesteding: inspanningsgericht","41A18"]
[null,"Dagbesteding: outputgericht (licht)","41A19"]
[null,"Dagbesteding: outputgericht (middel)","41A20"]
[null,"Dagbesteding: outputgericht (zwaar)","41A21"]
[null,"Dagbesteding: inspanningsgericht (licht)","41A22"]
[null,"Dagbesteding: inspanningsgericht (middel)","41A23"]
[null,"Dagbesteding: inspanningsgericht (zwaar)","41A24"]
[null,"Dagbehandeling: outputgericht","41B00"]
[null,"Diagnostiek op eigen locatie aanbieder: outputgericht","41B01"]
[null,"Diagnostiek op locatie bij andere organisaties: outputgericht","41B02"]
[null,"Begeleiden op eigen locatie aanbieder: outputgericht","41B03"]
[null,"Begeleiden op locatie bij andere organisatie: outputgericht","41B04"]
[null,"Behandelen op eigen locatie aanbieder: outputgericht","41B05"]
[null,"Behandelen op locatie bij andere organisatie: outputgericht","41B06"]
[42,"Vervoerdiensten"]
[null,"Vervoer: outputgericht","42A01"]
[null,"Vervoer rolstoel: outputgericht","42A02"]
[null,"Vervoer: inspanningsgericht","42A03"]
[null,"Vervoer rolstoel: inspanningsgericht","42A04"]
[null,"Vervoer: outputgericht (licht)","42A05"]
[null,"Vervoer: outputgericht (middel)","42A06"]
[null,"Vervoer: outputgericht (zwaar)","42A07"]
[null,"Vervoer rolstoel: outputgericht (licht)","42A08"]
[null,"Vervoer rolstoel: outputgericht (middel)","42A09"]
[null,"Vervoer rolstoel: outputgericht (zwaar)","42A10"]
[43,"Jeugdhulp verblijf (incl. behandeling)"]
[null,"Jeugdhulp verblijf: outputgericht","43A01"]
[null,"Deeltijdverblijf: outputgericht","43A02"]
[null,"Pleegzorg: outputgericht","43A03"]
[null,"Gezinshuis: outputgericht","43A04"]
[null,"Logeren: outputgericht","43A05"]
[null,"JeugdzorgPlus: outputgericht","43A06"]
[null,"Jeugdhulp verblijf: inspanningsgericht","43A07"]
[null,"Deeltijdverblijf: inspanningsgericht","43A08"]
[null,"Pleegzorg: inspanningsgericht","43A09"]
[null,"Gezinshuis: inspanningsgericht","43A10"]
[null,"Logeren: inspanningsgericht","43A11"]
[null,"JeugdzorgPlus: inspanningsgericht","43A12"]
[null,"JSLVG: inspanningsgericht","43A13"]
[null,"Observatie: inspanningsgericht","43A14"]
[null,"Jeugdhulp verblijf: outputgericht (licht)","43A15"]
[null,"Jeugdhulp verblijf: outputgericht (middel)","43A16"]
[null,"Jeugdhulp verblijf: outputgericht (middelzwaar)","43A17"]
[null,"Jeugdhulp verblijf: outputgericht (zwaar)","43A18"]
[null,"Jeugdhulp verblijf: outputgericht (extra zwaar)","43A19"]
[null,"Deeltijdverblijf: outputgericht (licht)","43A20"]
[null,"Deeltijdverblijf: outputgericht (middel)","43A21"]
[null,"Deeltijdverblijf: outputgericht (zwaar)","43A22"]
[null,"Pleegzorg: outputgericht (deeltijd)","43A23"]
[null,"Pleegzorg: outputgericht (voltijd)","43A24"]
[null,"Pleegzorg: outputgericht (vakantie)","43A25"]
[null,"Pleegzorg specialistisch: outputgericht (deeltijd)","43A26"]
[null,"Pleegzorg specialistisch: outputgericht (voltijd)","43A27"]
[null,"Pleegzorg specialistisch: outputgericht (vakantie)","43A28"]
[null,"Gezinshuis: outputgericht (licht)","43A29"]
[null,"Gezinshuis: outputgericht (middel)","43A30"]
[null,"Gezinshuis: outputgericht (zwaar)","43A31"]
[null,"Logeren: outputgericht (licht)","43A32"]
[null,"Logeren: outputgericht (middel)","43A33"]
[null,"Logeren: outputgericht (zwaar)","43A34"]
[null,"Jeugdhulp verblijf: inspanningsgericht (licht)","43A35"]
[null,"Jeugdhulp verblijf: inspanningsgericht (middel)","43A36"]
[null,"Jeugdhulp verblijf: inspanningsgericht (middelzwaar)","43A37"]
[null,"Jeugdhulp verblijf: inspanningsgericht (zwaar)","43A38"]
[null,"Jeugdhulp verblijf: inspanningsgericht (extra zwaar)","43A39"]
[null,"Deeltijdverblijf: inspanningsgericht (licht)","43A40"]
[null,"Deeltijdverblijf: inspanningsgericht (middel)","43A41"]
[null,"Deeltijdverblijf: inspanningsgericht (zwaar)","43A42"]
[null,"ZZP LVG: inspanningsgericht (licht)","43A43"]
[null,"ZZP LVG: inspanningsgericht (middel)","43A44"]
[null,"ZZP LVG: inspanningsgericht (middelzwaar)","43A45"]
[null,"ZZP LVG: inspanningsgericht (zwaar)","43A46"]
[null,"ZZP LVG: inspanningsgericht (extra zwaar)","43A47"]
[null,"Observatie: inspanningsgericht (licht)","43A48"]
[null,"Observatie: inspanningsgericht (middel)","43A49"]
[null,"Observatie: inspanningsgericht (zwaar)","43A50"]
[null,"Per dag ZZP 3VG incl.BH excl.DB","43A51"]
[null,"Per dag ZZP 3VG incl.BH incl.DB","43A52"]
[null,"Per dag ZZP 1LVG incl.BH incl.DB","43A53"]
[null,"Per dag ZZP 2LVG incl.BH incl.DB","43A54"]
[null,"Per dag ZZP 3LVG incl.BH incl.DB","43A55"]
[null,"Per dag ZZP 4LVG incl.BH incl.DB","43A56"]
[null,"Per dag ZZP 5LVG incl.BH incl.DB","43A57"]
[null,"NHC","43A58"]
[null,"NIC","43A59"]
[null,"Pleegzorg geestelijk gehandicapten: outputgericht","43A60"]
[null,"Pleegzorg lichamelijk gehandicapten: outputgericht","43A61"]
[null,"Pleegzorg: inspanningsgericht (weekend)","43A62"]
[null,"Pleegzorg: inspanningsgericht (jonger dan 12 jaar)","43A63"]
[null,"Jeugdzorg plus jonger dan 12 jaar: inspanningsgericht","43A64"]
[null,"Afwezigheidsdag: inspanningsgericht","43A65"]
[null,"Logeren specialistisch inspanningsgericht","43A66"]
[null,"Pleegzorg: outputgericht","43B00"]
[null,"Gezinsgericht: outputgericht","43B01"]
[null,"Gesloten plaatsing: outputgericht","43B02"]
[null,"Verblijf anders: outputgericht","43B03"]
[null,"Diagnostiek verblijf anders fulltime: outputgericht","43B04"]
[null,"Diagnostiek verblijf anders hulpverlener parttime aanwezig: outputgericht","43B05"]
[null,"Diagnostiek verblijf anders cliënt parttime aanwezig: outputgericht","43B06"]
[null,"Diagnostiek verblijf anders driemilieuvoorziening: outputgericht","43B07"]
[null,"Behandelen met pleegzorg fulltime: outputgericht","43B08"]
[null,"Behandelen met pleegzorg parttime: outputgericht","43B09"]
[null,"Behandelen gezinsgericht fulltime: outputgericht","43B10"]
[null,"Behandelen gezinsgericht parttime: outputgericht","43B11"]
[null,"Gesloten plaatsing: hulp bij voorwaardelijke machtiging gesloten jeugdhulp en schorsing: outputgericht","43B12"]
[null,"Gesloten plaatsing: 24 uurs hulp onder machtiging gesloten jeugdhulp: outputgericht","43B13"]
[null,"Gesloten plaatsing: opname BOPZ: outputgericht","43B14"]
[null,"Gesloten plaatsing: traject Jeugdzorgplus: outputgericht","43B15"]
[null,"Behandelen verblijf anders fulltime: outputgericht","43B16"]
[null,"Behandelen verblijf anders hulpverlener parttime aanwezig: outputgericht","43B17"]
[null,"Behandelen verblijf anders cliënt parttime aanwezig: outputgericht","43B18"]
[null,"Behandelen verblijf anders driemilieuvoorziening: outputgericht","43B19"]
[44,"Jeugdhulp verblijf (excl. Behandeling)"]
[null,"Jeugdhulp verblijf: outputgericht","44A01"]
[null,"Deeltijdverblijf: outputgericht","44A02"]
[null,"Pleegzorg: outputgericht","44A03"]
[null,"Gezinshuis: outputgericht","44A04"]
[null,"Logeren: outputgericht","44A05"]
[null,"Jeugdhulp verblijf: inspanningsgericht","44A06"]
[null,"Pleegzorg: inspanningsgericht","44A07"]
[null,"Gezinshuis: inspanningsgericht","44A08"]
[null,"Logeren: inspanningsgericht","44A09"]
[null,"Jeugdhulp verblijf: outputgericht (licht)","44A10"]
[null,"Jeugdhulp verblijf: outputgericht (middel)","44A11"]
[null,"Jeugdhulp verblijf: outputgericht (middelzwaar)","44A12"]
[null,"Jeugdhulp verblijf: outputgericht (zwaar)","44A13"]
[null,"Jeugdhulp verblijf: outputgericht (extra zwaar)","44A14"]
[null,"Deeltijdverblijf: outputgericht (licht)","44A15"]
[null,"Deeltijdverblijf: outputgericht (middel)","44A16"]
[null,"Deeltijdverblijf: outputgericht (zwaar)","44A17"]
[null,"Pleegzorg: outputgericht (deeltijd)","44A18"]
[null,"Pleegzorg: outputgericht (voltijd)","44A19"]
[null,"Pleegzorg: outputgericht (vakantie)","44A20"]
[null,"Gezinshuis: outputgericht (licht)","44A21"]
[null,"Gezinshuis: outputgericht (middel)","44A22"]
[null,"Gezinshuis: outputgericht (zwaar)","44A23"]
[null,"Logeren: outputgericht (licht)","44A24"]
[null,"Logeren: outputgericht (middel)","44A25"]
[null,"Logeren: outputgericht (zwaar)","44A26"]
[null,"Jeugdhulp verblijf: inspanningsgericht (licht)","44A27"]
[null,"Jeugdhulp verblijf: inspanningsgericht (middel)","44A28"]
[null,"Jeugdhulp verblijf: inspanningsgericht (middelzwaar)","44A29"]
[null,"Jeugdhulp verblijf: inspanningsgericht (zwaar)","44A30"]
[null,"Jeugdhulp verblijf: inspanningsgericht (extra zwaar)","44A31"]
[null,"Deeltijdverblijf: inspanningsgericht (licht)","44A32"]
[null,"Deeltijdverblijf: inspanningsgericht (middel)","44A33"]
[null,"Deeltijdverblijf: inspanningsgericht (zwaar)","44A34"]
[null,"Per dag ZZP 1VG excl. DB","44A35"]
[null,"Per dag ZZP 2VG excl. DB","44A36"]
[null,"Per dag ZZP 3VG excl.BH excl.DB","44A37"]
[null,"Per dag ZZP 1VG incl. DB","44A38"]
[null,"Per dag ZZP 2VG incl. DB","44A39"]
[null,"Per dag ZZP 3VG excl.BH incl.DB","44A40"]
[null,"Per dag ZZP V&V verblijf niet-geindiceerd","44A41"]
[null,"Per dag ZZP GGZ verblijfscomponent","44A42"]
[null,"Per dag ZZP VG&LG verblijfscomponent","44A43"]
[null,"Per dag ZZP ZG verblijfscomponent","44A44"]
[null,"Logeren specialistisch: inspanningsgericht","44A45"]
[null,"Afwezigheidsdag: inspanningsgericht","44A46"]
[null,"Per dag VPT 1GGZ-C excl.BH excl.DB","44A47"]
[null,"Per dag VPT 1GGZ-C excl.BH incl.DB","44A48"]
[null,"Per dag VPT 2GGZ-C excl.BH excl.DB","44A49"]
[null,"Per dag VPT 2GGZ-C excl.BH incl.DB","44A50"]
[null,"Per dag VPT 3GGZ-C excl.BH excl.DB","44A51"]
[null,"Per dag VPT 3GGZ-C excl.BH incl.DB","44A52"]
[null,"Per dag VPT 4GGZ-C excl.BH excl.DB","44A53"]
[null,"Per dag VPT 4GGZ-C excl.BH incl.DB","44A54"]
[null,"Per dag VPT 5GGZ-C excl.BH excl.DB","44A55"]
[null,"Per dag VPT 5GGZ-C excl.BH incl.DB","44A56"]
[null,"Per dag VPT 6GGZ-C excl.BH excl.DB","44A57"]
[null,"Per dag VPT 6GGZ-C excl.BH incl.DB","44A58"]
[null,"Per dag ZZP 1GGZ-C excl.BH excl.DB ","44A59"]
[null,"Per dag ZZP 1GGZ-C excl.BH incl.DB ","44A60"]
[null,"Per dag ZZP 2GGZ-C excl.BH excl.DB ","44A61"]
[null,"Per dag ZZP 2GGZ-C excl.BH incl.DB ","44A62"]
[null,"Per dag ZZP 3GGZ-C excl.BH excl.DB ","44A63"]
[null,"Per dag ZZP 3GGZ-C excl.BH incl.DB ","44A64"]
[null,"Per dag ZZP 4GGZ-C excl.BH excl.DB ","44A65"]
[null,"Per dag ZZP 4GGZ-C excl.BH incl.DB ","44A66"]
[null,"Per dag ZZP 5GGZ-C excl.BH excl.DB ","44A67"]
[null,"Per dag ZZP 5GGZ-C excl.BH incl.DB ","44A68"]
[null,"Per dag ZZP 6GGZ-C excl.BH excl.DB ","44A69"]
[null,"Per dag ZZP 6GGZ-C excl.BH incl.DB ","44A70"]
[null,"Pleegzorg: outputgericht","44B00"]
[null,"Gezinsgericht: outputgericht","44B01"]
[null,"Begeleiden pleegzorg fulltime: outputgericht","44B02"]
[null,"Begeleiden pleegzorg parttime: outputgericht","44B03"]
[null,"Begeleiden gezinsgericht fulltime: outputgericht","44B04"]
[null,"Begeleiden gezinsgericht parttime: outputgericht","44B05"]
[45,"Jeugdhulp ambulant"]
[null,"Jeugdhulp ambulant regulier: outputgericht","45A01"]
[null,"Jeugdhulp ambulant specialistisch: outputgericht","45A02"]
[null,"Diagnostiek: outputgericht","45A03"]
[null,"Jeugdhulp ambulant regulier: inspanningsgericht","45A04"]
[null,"Jeugdhulp ambulant specialistisch: inspanningsgericht","45A05"]
[null,"Jeugdhulp ambulant diagnostiek: inspanningsgericht","45A06"]
[null,"Jeugdhulp ambulant regulier: outputgericht (licht)","45A07"]
[null,"Jeugdhulp ambulant regulier: outputgericht (middel)","45A08"]
[null,"Jeugdhulp ambulant regulier: outputgericht (zwaar)","45A09"]
[null,"Jeugdhulp ambulant regulier: outputgericht (individueel)","45A10"]
[null,"Jeugdhulp ambulant regulier: outputgericht (groep)","45A11"]
[null,"Jeugdhulp ambulant regulier: outputgericht (gezin/systeem)","45A12"]
[null,"Jeugdhulp ambulant regulier: outputgericht (op locatie)","45A13"]
[null,"Jeugdhulp ambulant specialistisch: outputgericht (licht)","45A14"]
[null,"Jeugdhulp ambulant specialistisch: outputgericht (middel)","45A15"]
[null,"Jeugdhulp ambulant specialistisch: outputgericht (zwaar)","45A16"]
[null,"Jeugdhulp ambulant specialistisch: outputgericht (individueel)","45A17"]
[null,"Jeugdhulp ambulant specialistisch: outputgericht (groep)","45A18"]
[null,"Jeugdhulp ambulant specialistisch: outputgericht (gezin/systeem)","45A19"]
[null,"Jeugdhulp ambulant specialistisch: outputgericht (op locatie)","45A20"]
[null,"Jeugdhulp ambulant regulier: outputgericht (licht & individueel)","45A21"]
[null,"Jeugdhulp ambulant regulier: outputgericht (middel & individueel)","45A22"]
[null,"Jeugdhulp ambulant regulier: outputgericht (zwaar & individueel)","45A23"]
[null,"Jeugdhulp ambulant regulier: outputgericht (licht & groep)","45A24"]
[null,"Jeugdhulp ambulant regulier: outputgericht (middel & groep)","45A25"]
[null,"Jeugdhulp ambulant regulier: outputgericht (zwaar & groep)","45A26"]
[null,"Jeugdhulp ambulant regulier: outputgericht (licht & gezin/systeem)","45A27"]
[null,"Jeugdhulp ambulant regulier: outputgericht (middel & gezin/systeem)","45A28"]
[null,"Jeugdhulp ambulant regulier: outputgericht (zwaar & gezin/systeem)","45A29"]
[null,"Jeugdhulp ambulant regulier: outputgericht (licht & op locatie)","45A30"]
[null,"Jeugdhulp ambulant regulier: outputgericht (middel & op locatie)","45A31"]
[null,"Jeugdhulp ambulant regulier: outputgericht (zwaar & op locatie)","45A32"]
[null,"Jeugdhulp ambulant specialistisch: outputgericht (licht & individueel)","45A33"]
[null,"Jeugdhulp ambulant specialistisch: outputgericht (middel & individueel)","45A34"]
[null,"Jeugdhulp ambulant specialistisch: outputgericht (zwaar & individueel)","45A35"]
[null,"Jeugdhulp ambulant specialistisch: outputgericht (licht & groep)","45A36"]
[null,"Jeugdhulp ambulant specialistisch: outputgericht (middel & groep)","45A37"]
[null,"Jeugdhulp ambulant specialistisch: outputgericht (zwaar & groep)","45A38"]
[null,"Jeugdhulp ambulant specialistisch: outputgericht (licht & gezin/systeem)","45A39"]
[null,"Jeugdhulp ambulant specialistisch: outputgericht (middel & gezin/systeem)","45A40"]
[null,"Jeugdhulp ambulant specialistisch: outputgericht (zwaar & gezin/systeem)","45A41"]
[null,"Jeugdhulp ambulant specialistisch: outputgericht (licht & op locatie)","45A42"]
[null,"Jeugdhulp ambulant specialistisch: outputgericht (middel & op locatie)","45A43"]
[null,"Jeugdhulp ambulant specialistisch: outputgericht (zwaar & op locatie)","45A44"]
[null,"Jeugdhulp ambulant diagnostiek: outputgericht (licht)","45A45"]
[null,"Jeugdhulp ambulant diagnostiek: outputgericht (middel)","45A46"]
[null,"Jeugdhulp ambulant diagnostiek: outputgericht (zwaar)","45A47"]
[null,"Jeugdhulp ambulant regulier: inspanningsgericht (individueel)","45A48"]
[null,"Jeugdhulp ambulant regulier: inspanningsgericht (groep)","45A49"]
[null,"Jeugdhulp ambulant regulier: inspanningsgericht (op afstand)","45A50"]
[null,"Jeugdhulp ambulant regulier: inspanningsgericht (gezin/systeem)","45A51"]
[null,"Jeugdhulp ambulant regulier: inspanningsgericht (op locatie)","45A52"]
[null,"Jeugdhulp ambulant specialistisch: inspanningsgericht (individueel)","45A53"]
[null,"Jeugdhulp ambulant specialistisch: inspanningsgericht (groep)","45A54"]
[null,"Jeugdhulp ambulant specialistisch: inspanningsgericht (op afstand)","45A55"]
[null,"Jeugdhulp ambulant specialistisch: inspanningsgericht (gezin/systeem)","45A56"]
[null,"Jeugdhulp ambulant specialistisch: inspanningsgericht (op locatie)","45A57"]
[null,"Per dag Toeslag ZZP MFC","45A58"]
[null,"Per dag Toeslag ZZP Observatie","45A59"]
[null,"Per dag Toeslag ZZP woonzorg GHZ kind","45A60"]
[null,"Per dag Toeslag ZZP woonzorg GHZ jeugd","45A61"]
[null,"Per dagdeel Toeslag ZZP dagb.","45A62"]
[null,"Jeugdhulp ambulant laag tarief: inspanningsgericht","45A63"]
[null,"Behandeling: outputgericht","45A64"]
[null,"Behandeling: inspanningsgericht","45A65"]
[null,"Behandeling: outputgericht (licht)","45A66"]
[null,"Behandeling: outputgericht (middel)","45A67"]
[null,"Behandeling: outputgericht (zwaar)","45A68"]
[null,"Behandeling: inspanningsgericht (op locatie)","45A69"]
[null,"Jeugdhulp ambulant laag tarief: inspanningsgericht (individueel)","45A70"]
[null,"Jeugdhulp ambulant laag tarief: inspanningsgericht (groep)","45A71"]
[null,"Jeugdhulp ambulant laag tarief: inspanningsgericht (op afstand)","45A72"]
[null,"Jeugdhulp ambulant laag tarief: inspanningsgericht (gezin/systeem)","45A73"]
[null,"Jeugdhulp ambulant laag tarief: inspanningsgericht (op locatie)","45A74"]
[null,"Jeugdhulp ambulant coördinatie","45A75"]
[null,"Ambulante Jeugdhulp: outputgericht","45B00"]
[null,"Diagnostiek in jeugd/wijkteam individu: outputgericht","45B01"]
[null,"Diagnostiek in jeugd/wijkteam gezin: outputgericht","45B02"]
[null,"Diagnostiek in jeugd/wijkteam groep: outputgericht","45B03"]
[null,"Diagnostiek ambulant op locatie aanbieder individu: outputgericht","45B04"]
[null,"Diagnostiek ambulant op locatie aanbieder gezin: outputgericht","45B05"]
[null,"Diagnostiek ambulant op locatie aanbieder groep: outputgericht","45B06"]
[null,"Diagnostiek in netwerk jeugdige individu: outputgericht","45B07"]
[null,"Diagnostiek in netwerk jeugdige gezin: outputgericht","45B08"]
[null,"Diagnostiek in netwerk jeugdige groep: outputgericht","45B09"]
[null,"Begeleiden in jeugd/wijkteam individu: outputgericht","45B10"]
[null,"Begeleiden in jeugd/wijkteam gezin: outputgericht","45B11"]
[null,"Begeleiden in jeugd/wijkteam groep: outputgericht","45B12"]
[null,"Begeleiden ambulant op locatie aanbieder individu: outputgericht","45B13"]
[null,"Begeleiden ambulant op locatie aanbieder gezin: outputgericht","45B14"]
[null,"Begeleiden ambulant op locatie aanbieder groep: outputgericht","45B15"]
[null,"Begeleiden in netwerk jeugdige individu: outputgericht","45B16"]
[null,"Begeleiden in netwerk jeugdige gezin: outputgericht","45B17"]
[null,"Begeleiden in netwerk jeugdige groep: outputgericht","45B18"]
[null,"Behandelen in jeugd/wijkteam individu: outputgericht","45B19"]
[null,"Behandelen in jeugd/wijkteam gezin: outputgericht","45B20"]
[null,"Behandelen in jeugd/wijkteam groep: outputgericht","45B21"]
[null,"Behandelen ambulant op locatie aanbieder individu: outputgericht","45B22"]
[null,"Behandelen ambulant op locatie aanbieder gezin: outputgericht","45B23"]
[null,"Behandelen ambulant op locatie aanbieder groep: outputgericht","45B24"]
[null,"Behandelen in netwerk jeugdige individu: outputgericht","45B25"]
[null,"Behandelen in netwerk jeugdige gezin: outputgericht","45B26"]
[null,"Behandelen in netwerk jeugdige groep: outputgericht","45B27"]
[46,"Jeugdhulp crisis"]
[null,"Jeugdhulp crisis: outputgericht","46A00"]
[null,"Jeugdhulp crisis ambulant: inspanningsgericht","46A01"]
[null,"Jeugdhulp crisis Gezinshuis: inspanningsgericht","46A02"]
[null,"Jeugdhulp crisis verblijf: inspanningsgericht","46A03"]
[null,"Jeugdhulp crisis verblijf (excl. beh.): inspanningsgericht","46A04"]
[null,"Jeugdhulp crisis pleegzorg: inspanningsgericht","46A05"]
[null,"Jeugdhulp crisis: outputgericht","46B00"]
[null,"Jeugdhulp crisis ambulant: outputgericht","46B01"]
[null,"Jeugdhulp crisis gezinshuis: outputgericht","46B02"]
[null,"Jeugdhulp crisis verblijf (incl. behandeling): outputgericht","46B03"]
[null,"Jeugdhulp crisis verblijf (excl. behandeling): outputgericht","46B04"]
[null,"Jeugdhulp crisis pleegzorg: outputgericht","46B05"]
[47,"Jeugdreclassering"]
[null,"Jeugdreclassering: outputgericht","47A01"]
[null,"Voorbereiding gedragsbeïnvloedende maatregel: outputgericht","47A02"]
[null,"Gedragsbeïnvloedende maatregel: outputgericht","47A03"]
[null,"ITB-Criem: outputgericht","47A04"]
[null,"ITB-Harde kern: outputgericht","47A05"]
[null,"Samenloop: outputgericht","47A06"]
[null,"STP training- en scholingsprogramma: outputgericht","47A07"]
[null,"Jeugdreclassering: outputgericht (licht)","47A08"]
[null,"Jeugdreclassering: outputgericht (middel)","47A09"]
[null,"Jeugdreclassering: outputgericht (zwaar)","47A10"]
[null,"Toezicht en begeleiding: outputgericht","47B00"]
[null,"Voorbereiding gedrag beïnvloedende maatregel: outputgericht ","47B01"]
[null,"Gedrag beïnvloedende maatregel: outputgericht ","47B02"]
[null,"Individuele trajectbegeleiding CRIEM: outputgericht ","47B03"]
[null,"Individuele trajectbegeleiding Harde Kern: outputgericht","47B04"]
[null,"Samenloop: outputgericht","47B05"]
[null,"Scholings- en trainingsprogramma: outputgericht","47B06"]
[48,"Jeugdbescherming"]
[null,"Jeugdbescherming: outputgericht","48A00"]
[null,"Ondertoezichtstelling jaar 1: outputgericht","48A01"]
[null,"Ondertoezichtstelling jaar 2 en verder: outputgericht","48A02"]
[null,"Voogdij: outputgericht","48A03"]
[null,"Ondertoezichtstelling jaar 1: inspanningsgericht","48A04"]
[null,"Ondertoezichtstelling jaar 2 en verder: inspanningsgericht","48A05"]
[null,"Voogdij: inspanningsgericht","48A06"]
[null,"Ondertoezichtstelling jaar 1: outputgericht","48B00"]
[null,"Ondertoezichtstelling jaar 2 en verder: outputgericht","48B01"]
[null,"Voogdij: outputgericht","48B02"]
[49,"Activiteiten in het preventief justitieel kader"]
[null,"Activiteiten in het preventief justitieel kader: inspanningsgericht","49A01"]
[null,"Activiteiten in het preventief justitieel kader: outputgericht","49A02"]
[null,"Activiteiten in het preventief justitieel kader: outputgericht(licht)","49A03"]
[null,"Activiteiten in het preventief justitieel kader: outputgericht(middel)","49A04"]
[null,"Activiteiten in het preventief justitieel kader: outputgericht(zwaar)","49A05"]
[null,"Begeleiding toezicht: outputgericht","49A06"]
[null,"Activiteiten in het preventief kader: outputgericht","49B00"]
[null,"Advies/consult: outputgericht","49B01"]
[null,"Drang/casusregie: outputgericht","49B02"]
[null,"Crisisinterventie: outputgericht","49B03"]
[null,"Nazorg: outputgericht","49B04"]
[null,"Overig: Raadsmelding: outputgericht","49B05"]
[null,"Overig: Zorgmelding/SAVE-onderzoek: outputgericht","49B06"]
[null,"Overig: Begeleiding toeleiding gesloten jeugdzorg: outputgericht","49B07"]
[50,"Maatwerkarrangementen jeugd"]
[null,"Maatwerkarrangementen Jeugdwet: outputgericht","50A00"]
[null,"Zelfstandig leven","50A01"]
[null,"Maatschappelijke deelname","50A02"]
[null,"Zelfstandig leven 1 (licht): outputgericht","50A03"]
[null,"Zelfstandig leven 1 (middel): outputgericht","50A04"]
[null,"Zelfstandig leven 1 (middelzwaar): outputgericht","50A05"]
[null,"Zelfstandig leven 1 (zwaar): outputgericht","50A06"]
[null,"Zelfstandig leven 1 (extra zwaar): outputgericht","50A07"]
[null,"Maatschappelijke deelname 1 (licht): outputgericht","50A08"]
[null,"Maatschappelijke deelname 1 (middel): outputgericht","50A09"]
[null,"Maatschappelijke deelname 1 (middelzwaar): outputgericht","50A10"]
[null,"Maatschappelijke deelname 1 (zwaar): outputgericht","50A11"]
[null,"Maatschappelijke deelname 1 (extra zwaar): outputgericht","50A12"]
[null,"Zelfstandig leven 2 (licht): outputgericht","50A13"]
[null,"Zelfstandig leven 2 (middel): outputgericht","50A14"]
[null,"Zelfstandig leven 2 (middelzwaar): outputgericht","50A15"]
[null,"Zelfstandig leven 2 (zwaar): outputgericht","50A16"]
[null,"Zelfstandig leven 2 (extra zwaar): outputgericht","50A17"]
[null,"Zelfstandig leven 3 (licht): outputgericht","50A18"]
[null,"Zelfstandig leven 3 (middel): outputgericht","50A19"]
[null,"Zelfstandig leven 3 (middelzwaar): outputgericht","50A20"]
[null,"Zelfstandig leven 3 (zwaar): outputgericht","50A21"]
[null,"Zelfstandig leven 3 (extra zwaar): outputgericht","50A22"]
[null,"Maatschappelijke deelname 2 (licht): outputgericht","50A23"]
[null,"Maatschappelijke deelname 2 (middel): outputgericht","50A24"]
[null,"Maatschappelijke deelname 2 (middelzwaar): outputgericht","50A25"]
[null,"Maatschappelijke deelname 2 (zwaar): outputgericht","50A26"]
[null,"Maatschappelijke deelname 2 (extra zwaar): outputgericht","50A27"]
[null,"Maatschappelijke deelname 3 (licht): outputgericht","50A28"]
[null,"Maatschappelijke deelname 3 (middel): outputgericht","50A29"]
[null,"Maatschappelijke deelname 3 (middelzwaar): outputgericht","50A30"]
[null,"Maatschappelijke deelname 3 (zwaar): outputgericht","50A31"]
[null,"Maatschappelijke deelname 3 (extra zwaar): outputgericht","50A32"]
[null,"Profiel 1 Laagcomplex Intensief: outputgericht","P5001"]
[null,"Profiel 1 Laagcomplex Perspectief: outputgericht","P5002"]
[null,"Profiel 1 Laagcomplex Duurzaam Licht: outputgericht","P5003"]
[null,"Profiel 1 Laagcomplex Duurzaam Zwaar: outputgericht","P5004"]
[null,"Profiel 1 Laagcomplex Acuut: outputgericht","P5005"]
[null,"Profiel 1 Hoogcomplex Intensief: outputgericht","P5006"]
[null,"Profiel 1 Hoogcomplex Perspectief: outputgericht","P5007"]
[null,"Profiel 1 Hoogcomplex Duurzaam Licht: outputgericht","P5008"]
[null,"Profiel 1 Hoogcomplex Duurzaam Zwaar: outputgericht","P5009"]
[null,"Profiel 1 Hoogcomplex Acuut: outputgericht","P5010"]
[null,"Profiel 2 Laagcomplex Intensief: outputgericht","P5016"]
[null,"Profiel 2 Laagcomplex Perspectief: outputgericht","P5017"]
[null,"Profiel 2 Laagcomplex Duurzaam Licht: outputgericht","P5018"]
[null,"Profiel 2 Laagcomplex Duurzaam Zwaar: outputgericht","P5019"]
[null,"Profiel 2 Laagcomplex Acuut: outputgericht","P5020"]
[null,"Profiel 2 Hoogcomplex Intensief: outputgericht","P5021"]
[null,"Profiel 2 Hoogcomplex Perspectief: outputgericht","P5022"]
[null,"Profiel 2 Hoogcomplex Duurzaam Licht: outputgericht","P5023"]
[null,"Profiel 2 Hoogcomplex Duurzaam Zwaar: outputgericht","P5024"]
[null,"Profiel 2 Hoogcomplex Acuut: outputgericht","P5025"]
[null,"Profiel 3 Laagcomplex Intensief: outputgericht","P5031"]
[null,"Profiel 3 Laagcomplex Perspectief: outputgericht","P5032"]
[null,"Profiel 3 Laagcomplex Duurzaam Licht: outputgericht","P5033"]
[null,"Profiel 3 Laagcomplex Duurzaam Zwaar: outputgericht","P5034"]
[null,"Profiel 3 Laagcomplex Acuut: outputgericht","P5035"]
[null,"Profiel 3 Hoogcomplex Intensief: outputgericht","P5036"]
[null,"Profiel 3 Hoogcomplex Perspectief: outputgericht","P5037"]
[null,"Profiel 3 Hoogcomplex Duurzaam Licht: outputgericht","P5038"]
[null,"Profiel 3 Hoogcomplex Duurzaam Zwaar: outputgericht","P5039"]
[null,"Profiel 3 Hoogcomplex Acuut: outputgericht","P5040"]
[null,"Profiel 4 Laagcomplex Intensief: outputgericht","P5046"]
[null,"Profiel 4 Laagcomplex Perspectief: outputgericht","P5047"]
[null,"Profiel 4 Laagcomplex Duurzaam Licht: outputgericht","P5048"]
[null,"Profiel 4 Laagcomplex Duurzaam Zwaar: outputgericht","P5049"]
[null,"Profiel 4 Laagcomplex Acuut: outputgericht","P5050"]
[null,"Profiel 4 Hoogcomplex Intensief: outputgericht","P5051"]
[null,"Profiel 4 Hoogcomplex Perspectief: outputgericht","P5052"]
[null,"Profiel 4 Hoogcomplex Duurzaam Licht: outputgericht","P5053"]
[null,"Profiel 4 Hoogcomplex Duurzaam Zwaar: outputgericht","P5054"]
[null,"Profiel 4 Hoogcomplex Acuut: outputgericht","P5055"]
[null,"Profiel 5 Laagcomplex Intensief: outputgericht","P5061"]
[null,"Profiel 5 Laagcomplex Perspectief: outputgericht","P5062"]
[null,"Profiel 5 Laagcomplex Duurzaam Licht: outputgericht","P5063"]
[null,"Profiel 5 Laagcomplex Duurzaam Zwaar: outputgericht","P5064"]
[null,"Profiel 5 Laagcomplex Acuut: outputgericht","P5065"]
[null,"Profiel 5 Hoogcomplex Intensief: outputgericht","P5066"]
[null,"Profiel 5 Hoogcomplex Perspectief: outputgericht","P5067"]
[null,"Profiel 5 Hoogcomplex Duurzaam Licht: outputgericht","P5068"]
[null,"Profiel 5 Hoogcomplex Duurzaam Zwaar: outputgericht","P5069"]
[null,"Profiel 5 Hoogcomplex Acuut: outputgericht","P5070"]
[null,"Profiel 6 Laagcomplex Intensief: outputgericht","P5076"]
[null,"Profiel 6 Laagcomplex Perspectief: outputgericht","P5077"]
[null,"Profiel 6 Laagcomplex Duurzaam Licht: outputgericht","P5078"]
[null,"Profiel 6 Laagcomplex Duurzaam Zwaar: outputgericht","P5079"]
[null,"Profiel 6 Laagcomplex Acuut: outputgericht","P5080"]
[null,"Profiel 6 Hoogcomplex Intensief: outputgericht","P5081"]
[null,"Profiel 6 Hoogcomplex Perspectief: outputgericht","P5082"]
[null,"Profiel 6 Hoogcomplex Duurzaam Licht: outputgericht","P5083"]
[null,"Profiel 6 Hoogcomplex Duurzaam Zwaar: outputgericht","P5084"]
[null,"Profiel 6 Hoogcomplex Acuut: outputgericht","P5085"]
[null,"Profiel 7 Laagcomplex Intensief: outputgericht","P5091"]
[null,"Profiel 7 Laagcomplex Perspectief: outputgericht","P5092"]
[null,"Profiel 7 Laagcomplex Duurzaam Licht: outputgericht","P5093"]
[null,"Profiel 7 Laagcomplex Duurzaam Zwaar: outputgericht","P5094"]
[null,"Profiel 7 Laagcomplex Acuut: outputgericht","P5095"]
[null,"Profiel 7 Hoogcomplex Intensief: outputgericht","P5096"]
[null,"Profiel 7 Hoogcomplex Perspectief: outputgericht","P5097"]
[null,"Profiel 7 Hoogcomplex Duurzaam Licht: outputgericht","P5098"]
[null,"Profiel 7 Hoogcomplex Duurzaam Zwaar: outputgericht","P5099"]
[null,"Profiel 7 Hoogcomplex Acuut: outputgericht","P5100"]
[null,"Profiel 8 Laagcomplex Intensief: outputgericht","P5106"]
[null,"Profiel 8 Laagcomplex Perspectief: outputgericht","P5107"]
[null,"Profiel 8 Laagcomplex Duurzaam Licht: outputgericht","P5108"]
[null,"Profiel 8 Laagcomplex Duurzaam Zwaar: outputgericht","P5109"]
[null,"Profiel 8 Laagcomplex Acuut: outputgericht","P5110"]
[null,"Profiel 8 Hoogcomplex Intensief: outputgericht","P5111"]
[null,"Profiel 8 Hoogcomplex Perspectief: outputgericht","P5112"]
[null,"Profiel 8 Hoogcomplex Duurzaam Licht: outputgericht","P5113"]
[null,"Profiel 8 Hoogcomplex Duurzaam Zwaar: outputgericht","P5114"]
[null,"Profiel 8 Hoogcomplex Acuut: outputgericht","P5115"]
[null,"Profiel 9 Laagcomplex Intensief: outputgericht","P5121"]
[null,"Profiel 9 Laagcomplex Perspectief: outputgericht","P5122"]
[null,"Profiel 9 Laagcomplex Duurzaam Licht: outputgericht","P5123"]
[null,"Profiel 9 Laagcomplex Duurzaam Zwaar: outputgericht","P5124"]
[null,"Profiel 9 Laagcomplex Acuut: outputgericht","P5125"]
[null,"Profiel 9 Hoogcomplex Intensief: outputgericht","P5126"]
[null,"Profiel 9 Hoogcomplex Perspectief: outputgericht","P5127"]
[null,"Profiel 9 Hoogcomplex Duurzaam Licht: outputgericht","P5128"]
[null,"Profiel 9 Hoogcomplex Duurzaam Zwaar: outputgericht","P5129"]
[null,"Profiel 9 Hoogcomplex Acuut: outputgericht","P5130"]
[null,"Profiel 10 Laagcomplex Intensief: outputgericht","P5136"]
[null,"Profiel 10 Laagcomplex Perspectief: outputgericht","P5137"]
[null,"Profiel 10 Laagcomplex Duurzaam Licht: outputgericht","P5138"]
[null,"Profiel 10 Laagcomplex Duurzaam Zwaar: outputgericht","P5139"]
[null,"Profiel 10 Hoogcomplex Intensief: outputgericht","P5140"]
[null,"Profiel 10 Hoogcomplex Perspectief: outputgericht","P5141"]
[null,"Profiel 10 Hoogcomplex Duurzaam Licht: outputgericht","P5142"]
[null,"Profiel 10 Hoogcomplex Duurzaam Zwaar: outputgericht","P5143"]
[null,"Profiel 11 Laagcomplex Intensief: outputgericht","P5151"]
[null,"Profiel 11 Laagcomplex Perspectief: outputgericht","P5152"]
[null,"Profiel 11 Hoogcomplex Duurzaam Licht: outputgericht","P5153"]
[null,"Profiel 11 Hoogcomplex Duurzaam Zwaar: outputgericht","P5154"]
[51,"Generalistische basis-ggz"]
[null,"Kort","51A00"]
[null,"Middel","51A01"]
[null,"Chronisch","51A02"]
[null,"Intensief","51A03"]
[null,"Onvolledig behandeltraject","51A04"]
[null,"Umami","51A05"]
[53,"Kindergeneeskunde"]
[null,"Behandeling of onderzoek op de polikliniek of dagbehandeling bij gedragsproblemen","53A01"]
[null,"Consult op de polikliniek bij gedragsproblemen","53A02"]
[null,"Meer dan 6 polikliniekbezoeken of meer dan 1 dagbehandeling bij een psychische of gedragsaandoening","53A03"]
[null,"Consult op de polikliniek bij een psychische of gedragsaandoening","53A04"]
[null,"Behandeling of onderzoek op de polikliniek of dagbehandeling bij een psychische of gedragsaandoening (incl. activiteiten psychosociaal specifiek)","53A05"]
[null,"Behandeling of onderzoek op de polikliniek of dagbehandeling bij Een psychische of gedragsaandoening (excl. activiteiten psychosociaal specifiek)","53A06"]
[54,"Jeugd-ggz"]
[null,"Jeugd-ggz behandeling regulier / generalistisch",54001]
[null,"Jeugd-ggz behandeling specialistisch",54002]
[null,"Jeugd-ggz behandeling hoog-specialistisch",54003]
[null,"Jeugd-ggz diagnostiek",54004]
[null,"Jeugd-ggz verblijf licht",54005]
[null,"Jeugd-ggz verblijf zwaar",54006]
[null,"Jeugd-ggz verblijf zonder overnachting",54007]
[null,"Jeugd-ggz beschikbaarheidscomponent voor 24-uurs crisiszorg",54008]
[null,"Jeugd-ggz verblijf tariefklasse A",54009]
[null,"Jeugd-ggz verblijf tariefklasse B",54010]
[null,"Jeugd-ggz verblijf tariefklasse C",54011]
[null,"Jeugd-ggz verblijf tariefklasse D",54012]
[null,"Jeugd-ggz verblijf tariefklasse E",54013]
[null,"Jeugd-ggz verblijf tariefklasse F",54014]
[null,"Jeugd-ggz verblijf tariefklasse G",54015]
[null,"Jeugd-ggz crisis behandeling",54016]
[null,"Jeugd-ggz crisis verblijf",54017]
[55,"Landelijk ingekochte zorg"]
[null,"Jeugd-ggz behandeling specialistisch",55001]
[null,"Jeugd-ggz diagnostiek",55002]
[null,"Jeugd-ggz beschikbaarheidscomponent voor 24-uurs crisiszorg",55003]
[null,"Consultatie",55004]
[null,"Jeugd-ggz verblijf zonder overnachting",55005]
[null,"Deelprestatie verblijf GGZ A (Lichte verzorgingsgraad)",55006]
[null,"Deelprestatie verblijf GGZ B (Beperkte verzorgingsgraad)",55007]
[null,"Deelprestatie verblijf GGZ C (Matige verzorgingsgraad)",55008]
[null,"Deelprestatie verblijf GGZ D (Gemiddelde verzorgingsgraad)",55009]
[null,"Deelprestatie verblijf GGZ E (Intensieve verzorgingsgraad)",55010]
[null,"Deelprestatie verblijf GGZ F (Extra intensieve verzorgingsgraad)",55011]
[null,"Deelprestatie verblijf GGZ G (Zeer intensieve verzorgingsgraad)",55012]
[null,"Specialistische begeleiding jeugdhulp ambulant",55013]
[null,"Deelprestatie verblijf H",55014]
[null,"Behandeling en verblijf JeugdzorgPlus",55015]
[null,"Behandeling en verblijf JSLVG",55016]
[null,"Diagnostiek, observatie en behandeling",55017]
[null,"IC: diagnostiek, observatie en behandeling",55018]
[null,"VIC: diagnostiek, observatie en behandeling",55019]
[null,"Opvang en behandeling slachtoffers loverboys",55020]
[null,"Voedselweigering 24 uurs",55021]
[null,"Voedselweigering 24 uurs weekend",55022]
[null,"Voedselweigering dagbehandeling",55023]
[null,"Voedselweigering nazorg",55024]
[null,"Voedselweigering ambulant",55025]
[null,"Voedselweigering reiskosten",55026]
[null,"Voedselweigering zindelijkheid",55027]
[null,"Begeleiding en behandeling autisme intensief (Kib Ass)",55028]
[null,"Med-Psy unit (MPU-bed)",55029]
[null,"TPO",55030]
[null,"MST PSB",55031]
[null,"MBT Early",55032]
[56,"Landelijke Transitie Arrangementen"]
[null,"Consultatie","L0001"]
[null,"JeugdzorgPlus voor onder de 12 jaar","L0002"]
[null,"Zeer Intensieve Kortdurende Observatie en Stabilisatie","L0003"]
[null,"JeugdzorgPlus Moeder & Kind","L0004"]
[null,"Adoptienazorg Preventief","L0005"]
[null,"Adoptienazorg Basis","L0006"]
[null,"Adoptienazorg – kort vervolgtraject","L0007"]
[null,"Adoptienazorg Uitgebreid Traject","L0008"]
[null,"Opvoedondersteuning doven en slechthorenden","L0115"]
[null,"JSLVG (obv LVG 4)","L0120"]
[null,"JSLVG (obv LVG 5)","L0121"]
[null,"Diagnostiek, observatie en exploratieve behandeling 3 LVG","L0122"]
[null,"Diagnostiek, observatie en exploratieve behandeling 4 LVG","L0123"]
[null,"Diagnostiek, observatie en exploratieve behandeling 5 LVG","L0124"]
[null,"Diagnostiek, observatie en exploratieve behandeling Very Intensive Care","L0125"]
[null,"Multidimensional Treatment Foster Care (MTFC)","L0126"]
[null,"Multidimensionele Familietherapie (MDFT)","L0127"]
[null,"Functional Family Therapy (FFT)","L0128"]
[null,"Multisysteem Therapie (MST)","L0129"]
[null,"Ouderschap met Liefde en Grenzen (OLG)","L0130"]
[null,"Advies forensisch pedriatisch","L0131"]
[null,"Intercollegiaal advies forensisch pedriatisch","L0132"]
[null,"MDO + intercollegiaal advies","L0133"]
[null,"Lichamelijk letselonderzoek standaard","L0134"]
[null,"Lichamelijk letselonderzoek complex","L0135"]
[null,"Dossier onderzoek (Forensisch Medische Analyse)","L0136"]
[null,"Extra module bij producten Lichamelijk letselonderzoek: inzet mobiele team","L0137"]
[null,"Voedselweigering – consult","L0138"]
[null,"24-uurzorg voedselweigering","L0139"]
[null,"24-uurszorg deeltijd weekend verlof voedselweigering","L0140"]
[null,"Dagbehandeling voedselweigering","L0141"]
[null,"Nazorg voedselweigering","L0142"]
[null,"Behandeling ambulant intensief voedselweigering","L0143"]
[null,"Reiskosten orthopedagogen voedselweigering","L0144"]
[null,"Behandeling ambulant voedselweigering","L0145"]
[null,"Zindelijkheidskamp","L0146"]
[null,"Opvang slachtoffers loverboys eergerelateerd geweld of mensenhandel","L0147"]
[null,"Opvang slachtoffers loverboys eergerelateerd geweld of mensenhandel dag 1 tot en met 35","L0148"]
[null,"Opvang slachtoffers loverboys eergerelateerd geweld of mensenhandel vanaf 36","L0149"]

{"sheet":"Versie","index":11,"n_rows":1,"n_cols":1,"rows_kept":1,"cut":false,"hidden":false,"merged":[]}
["24-11-2022/amd"]

{"sheet":"Tussenblad","index":12,"n_rows":0,"n_cols":0,"rows_kept":0,"cut":false,"hidden":true,"merged":[]}